Workbook

Sheet Inicio_Mono
A25: Descargue la versión Kindle
K34: Miguel Cervantes Jiménez

Sheet prueba (hidden)
A1: MONOPOLIO
A2: Función de demada lineal
B5: Parámetros de la función costos e inversa de la demanda
B6: a (y3) | C6: 0.050 | D6: =C7 -> -0.500
B7: b (y2) | C7: -0.500 | D7: =C8 -> 10.0
B8: c (y) | C8: 10.0 | D8: =C9 -> 100.0
B9: d | C9: 100.0 | D9: =C10 -> 500.0
B10: b0 | C10: 500.0 | D10: -0.50
B11: b1 | C11: -2.00 | D11: =C12 -> 250.0
B12: b0/b1 | C12: =C10/C11*-1 -> 250.0 | D12: =C13 -> -0.5
B13: 1/b1 | C13: =1/C11 -> -0.5
C14: Impuesto unitario | D14: 0.0
B15: Inserte los datos correspondientes
B16: Precio de equilibrio | C16: =+Oculto_Mono!X11 -> 185.0 | D16: =+Oculto_Mono!Y11 -> 185.0
B17: Cantidad de equilibrio | C17: =+Oculto_Mono!X12 -> 130.0 | D17: =+Oculto_Mono!Y12 -> 130.0
B18: Ingreso marginal | C18: =+Oculto_Mono!X13 -> 120.0 | D18: =+Oculto_Mono!Y13 -> 120.0
B19: Costo marginal | C19: =+Oculto_Mono!X14 -> 120.0 | D19: =+Oculto_Mono!Y14 -> 120.0
B20: Costo medio | C20: =+Oculto_Mono!X15 -> 55.8 | D20: =+Oculto_Mono!Y15 -> 55.8
B21: Costo total | C21: =+Oculto_Mono!X16 -> 7,250.0 | D21: =+Oculto_Mono!Y16 -> 7,250.0
B22: Ingreso total | C22: =+Oculto_Mono!X17 -> 24,050.0 | D22: =+Oculto_Mono!Y17 -> 24,050.0
B23: Beneficio | C23: =+Oculto_Mono!X18 -> 16,800.0 | D23: =+Oculto_Mono!Y18 -> 16,800.0
B24: Elasticidad precio | C24: =+C13*(C16/C17) -> -0.7 | D24: =+D12*(D16/D17) -> -0.7
B32: Títulos
B33: Resultados
B34: Insertar datos
B35: Valores de equilibrio

Sheet Mono_maxben_cp_2g (hidden)
A1: MONOPOLIO
A2: Función de demada lineal
B5: Parámetros de la función costos e inversa de la demanda
B6: b (y2) | C6: 0.500 | D6: =C6 -> 0.500
B7: c (y) | C7: -10.0 | D7: =C7 -> -10.0
B8: d | C8: 100.0 | D8: =C8 -> 100.0
B9: b0 | C9: 250.0 | D9: =C9 -> 250.0
B10: b1 | C10: -0.50 | D10: -0.50
B11: b0/b1 | C11: =C9/C10*-1 -> 500.0 | D11: =C11 -> 500.0
B12: 1/b1 | C12: =1/C10 -> -2.0 | D12: =C12 -> -2.0
B13: Impuesto unitario | D13: 0.0
B14: Inserte los datos correspondientes
B16: Precio de equilibrio | C16: =+Oculto_Mono!X11 -> 185.0 | D16: =+Oculto_Mono!Y11 -> 185.0
B17: Cantidad de equilibrio | C17: =+Oculto_Mono!X12 -> 130.0 | D17: =+Oculto_Mono!Y12 -> 130.0
B18: Ingreso marginal | C18: =+Oculto_Mono!X13 -> 120.0 | D18: =+Oculto_Mono!Y13 -> 120.0
B19: Costo marginal | C19: =+Oculto_Mono!X14 -> 120.0 | D19: =+Oculto_Mono!Y14 -> 120.0
B20: Costo medio | C20: =+Oculto_Mono!X15 -> 55.8 | D20: =+Oculto_Mono!Y15 -> 55.8
B21: Costo total | C21: =+Oculto_Mono!X16 -> 7,250.0 | D21: =+Oculto_Mono!Y16 -> 7,250.0
B22: Ingreso total | C22: =+Oculto_Mono!X17 -> 24,050.0 | D22: =+Oculto_Mono!Y17 -> 24,050.0
B23: Beneficio | C23: =+Oculto_Mono!X18 -> 16,800.0 | D23: =+Oculto_Mono!Y18 -> 16,800.0
B24: Elasticidad precio | C24: =+C12*(C16/C17) -> -2.8 | D24: =+D12*(D16/D17) -> -2.8
B32: Títulos
B33: Resultados
B34: Insertar datos
B35: Valores de equilibrio

Sheet Mono_maxben_cp_3g (hidden)
A1: MONOPOLIO
B5: Parámetros Función Costos
B6: a (y3) | C6: 0.0003
B7: b (y2) | C7: -0.500
B8: c (y) | C8: 0.00
B9: d | C9: 500,000.0
B10: b0 | C10: 1,500.0
B11: b1 | C11: -0.25
B12: b0/b1 | C12: =C10/C11*-1 -> 6,000.0
B13: 1/b1 | C13: =1/C11 -> -4.0
B14: Inserte los datos correspondientes
B16: Precio de equilibrio | C16: =Oculto_Mono!B12 -> 1,100.4
B17: Cantidad de equilibrio | C17: =Oculto_Mono!B13 -> 1,598.3
B18: Ingreso marginal | C18: =Oculto_Mono!B14 -> 700.8
B19: Costo marginal | C19: =Oculto_Mono!B15 -> 700.8
B20: Costo medio | C20: =Oculto_Mono!B16 -> 280.1
B21: Costo total | C21: =Oculto_Mono!B17 -> 447,618.7
B22: Ingreso total | C22: =Oculto_Mono!B18 -> 1,758,822.1
B23: Beneficio | C23: =Oculto_Mono!B19 -> 1,311,203.4
B24: Elasticidad precio | C24: =+Oculto_Mono!B20 -> -2.8
B32: Títulos
B33: Resultados
B34: Insertar datos
B35: Valores de equilibrio

Sheet Mono_natural (hidden)
A1: MONOPOLIO NATURAL
B5: Parámetros función costos
B6: a (y3) | C6: 0.00000300
B7: b (y2) | C7: -0.00000200
B8: c (y) | C8: 0.00000010
B9: d | C9: 2,000,000.0
B10: b0 | C10: 1,600.0
B11: b1 | C11: -0.25
B12: b0/b1 | C12: =C10/C11*-1 -> 6,400.0
B13: 1/b1 | C13: =1/C11 -> -4.0
B14: Inserte los datos correspondientes
B15: Soluciones | C15: Monopolio | D15: Competencia | E15: Monopolio natural
B16: Precio de equilibrio | C16: =Oculto_Mono!B62 -> 841.4 | D16: =Oculto_Mono!C62 -> 259.0 | E16: =Oculto_Mono!D62 -> 518.4
B17: Cantidad de equilibrio | C17: =Oculto_Mono!B63 -> 3,034.3 | D17: =Oculto_Mono!C63 -> 5,364.2 | E17: 4,326.3 | F17: =C6*(E17^3)+C7*(E17^2)-(1/C13)*(E17^2)+(C8-(C12/C13*-1))*E17+C9 -> 1.303851604e-08
B18: Ingreso marginal | C18: =Oculto_Mono!B64 -> 82.9
B19: Costo marginal | C19: =Oculto_Mono!B65 -> 82.9 | D19: =Oculto_Mono!C65 -> 259.0
B20: Costo medio | C20: =Oculto_Mono!B66 -> 686.7 | D20: =Oculto_Mono!C66 -> 459.2 | E20: =Oculto_Mono!D66 -> 518.4
B21: Costo total | C21: =Oculto_Mono!B67 -> 2,083,792 | D21: =Oculto_Mono!C67 -> 2,463,001 | E21: =Oculto_Mono!D67 -> 2,242,881
B22: Ingreso total | C22: =Oculto_Mono!B68 -> 2,553,136 | D22: =Oculto_Mono!C68 -> 1,389,061 | E22: =Oculto_Mono!D68 -> 2,242,881
B23: Beneficio | C23: =Oculto_Mono!B69 -> 469,344.1 | D23: =Oculto_Mono!C69 -> -1,073,940.4 | E23: =Oculto_Mono!D69 -> -0.0
B24: Elasticidad precio | C24: =+Oculto_Mono!B70 -> -1.1 | D24: =Oculto_Mono!C70 -> -0.2 | E24: =Oculto_Mono!D70 -> -0.5
B32: Títulos
B33: Resultados
B34: Insertar datos
B35: Valores de equilibrio

Sheet Discriminacion 1 (hidden)
A1: MONOPOLIO
A2: DISCRIMINACIÓN DE PRECIOS DE PRIMER GRADO
B5: Parámetros Función Costos
B6: b (y2) | C6: 0.03000
B7: c (y) | C7: 20.00000
B8: d | C8: 20.0
B9: b0 | C9: 250.0
B10: b1 | C10: -0.5
B11: b0/b1 | C11: =C9/C10*-1 -> 500.0
B12: 1/b1 | C12: =1/C10 -> -2.0
B13: Inserte los datos correspondientes
B15: Precio de equilibrio | C15: =Oculto_Mono!AX11 -> 141.5
B16: Cantidad de equilibrio | C16: =Oculto_Mono!AX12 -> 217.0
B17: Ingreso marginal | C17: =Oculto_Mono!AX13 -> 33.0
B18: Costo marginal | C18: =Oculto_Mono!AX14 -> 33.0
B19: Costo medio | C19: =Oculto_Mono!AX15 -> 26.6
B20: Costo total | C20: =Oculto_Mono!AX16 -> 5,772.0
B21: Ingreso total | C21: =Oculto_Mono!AX17 -> 30,704.9
B22: Beneficio | C22: =Oculto_Mono!AX18 -> 24,932.8
B23: Elasticidad precio | C23: =Oculto_Mono!AX19 -> 0.0
B25: SIN DISCRIMINACIÓN DE PRECIOS
B26: Excedente neto del consumidor | C26: =Oculto_Mono!AX36 -> 11,770.2
B27: Perdida irrecuperable de eficiencia | C27: =Oculto_Mono!AX37 -> 10,509.1
B29: CON DISCRIMINACIÓN DE PRECIOS
B30: Excedente neto del consumidor | C30: =Oculto_Mono!AX40 -> 0.0
B31: Perdida irrecuperable de eficiencia | C31: =Oculto_Mono!AX41 -> 0.0
B33: Títulos
B34: Resultados
B35: Insertar datos
B36: Equilibrio

Sheet Discriminacion 2 (hidden)
A1: MONOPOLIO
A2: DISCRIMINACIÓN DE PRECIOS DE SEGUNDO GRADO
B5: Parámetros Función Costos
B6: b (y2) | C6: 0.0000
B7: c (y) | C7: 100.00
B8: d | C8: 20.0
B9: b0 | C9: 200.0
B10: b1 | C10: -0.50
B11: b0/b1 | C11: =C9/C10*-1 -> 400.0
B12: 1/b1 | C12: =1/C10 -> -2.00
B13: Inserte los datos correspondientes
B15: Precio de equilibrio | C15: =Oculto_Mono!BX11 -> 150.0
B16: Cantidad de equilibrio | C16: =Oculto_Mono!BX12 -> 100.0
B17: Ingreso marginal | C17: =Oculto_Mono!BX13 -> 100.0
B18: Costo marginal | C18: =Oculto_Mono!BX14 -> 100.0
B19: Costo medio | C19: =Oculto_Mono!BX15 -> 100.2
B20: Costo total | C20: =Oculto_Mono!BX16 -> 10,020.0
B21: Ingreso total | C21: =Oculto_Mono!BX17 -> 15,000.0
B22: Beneficio | C22: =Oculto_Mono!BX18 -> 4,980.0
B23: Elasticidad precio | C23: =Oculto_Mono!BX19 -> 0.0
B25: SIN DISCRIMINACIÓN DE PRECIOS
B26: Excedente neto del consumidor | C26: =Oculto_Mono!BX36 -> 2,500.0
B27: Perdida irrecuperable de eficiencia | C27: =Oculto_Mono!BX37 -> 2,500.0
B29: CON DISCRIMINACIÓN DE PRECIOS
B30: Excedente neto del consumidor | C30: =Oculto_Mono!BX40 -> 2,000.0
B31: Perdida irrecuperable de eficiencia | C31: =Oculto_Mono!BX41 -> 0.0
B33: Títulos
B34: Resultados
B35: Insertar datos
B36: Equilibrio

Sheet Discriminacion 3 (hidden)
A1: MONOPOLIO
A2: DISCRIMINACIÓN DE PRECIOS DE TERCER GRADO
B5: Parámetros función costos | C5: Caso 1 | E5: Caso 2
B6: b (y2) | C6: 0.0000 | E6: =Oculto_Mono!DZ4 -> 0.0000
B7: c (y) | C7: 20.00 | E7: =Oculto_Mono!DZ5 -> 20.00
B8: d | C8: 2,000.0 | E8: =Oculto_Mono!DZ6 -> 2,000.0
B9: b0 | C9: 250.0 | E9: 200.0
B10: b1 | C10: -0.50 | E10: =-1/10 -> -0.10
B11: b0/b1 | C11: =C9/C10*-1 -> 500.0 | E11: =E9/E10*-1 -> 2,000.0
B12: 1/b1 | C12: =1/C10 -> -2.00 | E12: =1/E10 -> -10.00
B13: Inserte los datos correspondientes
B14: Precio de equilibrio | C14: =Oculto_Mono!DB10 -> 135.0 | E14: =Oculto_Mono!DZ10 -> 110.0
B15: Cantidad de equilibrio | C15: =Oculto_Mono!DB11 -> 230.0 | E15: =Oculto_Mono!DZ11 -> 900.0
B16: =Oculto_Mono!DA12 -> Elasticidad | C16: =Oculto_Mono!DB12 -> -1.17 | E16: =Oculto_Mono!DZ12 -> -1.22
B18: Ingreso marginal | C18: =Oculto_Mono!DB14 -> 20.0 | E18: =Oculto_Mono!DZ14 -> 20.0
B19: Costo marginal | C19: =Oculto_Mono!DB15 -> 20.0 | E19: =Oculto_Mono!DZ15 -> 20.0
B20: Costo medio | C20: =Oculto_Mono!DB16 -> 28.7 | E20: =Oculto_Mono!DZ16 -> 22.2
B21: Costo total | C21: =Oculto_Mono!DB17 -> 6,600.0 | E21: =Oculto_Mono!DZ17 -> 20,000.0
B22: Ingreso total | C22: =Oculto_Mono!DB18 -> 31,050.0 | E22: =Oculto_Mono!DZ18 -> 99,000.0
B23: Beneficio | C23: =Oculto_Mono!DB19 -> 24,450.0 | E23: =Oculto_Mono!DZ19 -> 79,000.0
B25: Excedente neto del consumidor | C25: =Oculto_Mono!DB34 -> 13,225.0 | E25: =Oculto_Mono!DZ34 -> 40,500.0
B27: Títulos
B28: Resultados
B29: Insertar datos
B30: Equilibrio

Sheet Oculto_Mono (hidden)
L1: Demanda | N1: Ingreso Marginal | W1: Función de demanda lineal con costos polinomiales de segundo grado | AH1: Demanda | AJ1: Ingreso Marginal | AW1: DISCRIMINACIÓN DE PRECIOS DE PRIMER GRADO | BH1: Demanda | BJ1: Ingreso Marginal | BW1: DISCRIMINACIÓN DE PRECIOS DE SEGUNDO GRADO | CH1: Demanda | CJ1: Ingreso Marginal | DA1: DISCRIMINACIÓN DE PRECIOS DE TERCER GRADO (caso uno) | DE1: 1 | DL1: Demanda | DN1: Ingreso Marginal | DY1: DISCRIMINACIÓN DE PRECIOS DE TERCER GRADO (caso dos) | ED1: 2 | EJ1: Demanda | EM1: Ingreso Marginal | EZ1: Función de demanda isoelastica con costos polinomiales de segundo grado | FK1: Demanda | FM1: Ingreso Marginal
A2: FUNCIÒN DE COSTOS | D2: Ponderador | E2: COSTO TOTAL | F2: COSTO MEDIO | H2: COSTO FIJO MEDIO | I2: COSTO VARIABLE MEDIO | J2: COSTO MARGINAL | L2: P | M2: Y | N2: P | O2: Y | P2: LineP(x) | R2: LineP(y) | T2: LineCU | W2: FUNCIÒN DE COSTOS | X2: CON impuesto | Y2: SIN impuesto | Z2: Ponderador | AA2: COSTO TOTAL | AB2: COSTO MEDIO | AD2: COSTO FIJO MEDIO | AE2: COSTO VARIABLE MEDIO | AF2: COSTO MARGINAL | AH2: P | AI2: Y | AJ2: P | AK2: Y | AL2: LineP(x) | AN2: LineP(y) | AP2: LineCU | AW2: FUNCIÒN DE COSTOS | AZ2: Ponderador | BA2: COSTO TOTAL | BB2: COSTO MEDIO | BD2: COSTO FIJO MEDIO | BE2: COSTO VARIABLE MEDIO | BF2: COSTO MARGINAL | BH2: P | BI2: Y | BJ2: P | BK2: Y | BL2: LineP(x)precio | BN2: LineP(y) | BP2: LineCU | BQ2: LineP(x)costo | BR2: xqcomp | BS2: yqcompet | BW2: FUNCIÒN DE COSTOS | BZ2: Ponderador | CA2: COSTO TOTAL | CB2: COSTO MEDIO | CD2: COSTO FIJO MEDIO | CE2: COSTO VARIABLE MEDIO | CF2: COSTO MARGINAL | CH2: P | CI2: Y | CJ2: P | CK2: Y | CL2: LineP(x)precio | CN2: LineP(y) | CP2: LineCU | CQ2: LineP(x)costo | CR2: xqcomp | CS2: yqcompet | DA2: FUNCIÒN DE COSTOS | DD2: Ponderador | DE2: COSTO TOTAL | DF2: COSTO MEDIO | DH2: COSTO FIJO MEDIO | DI2: COSTO VARIABLE MEDIO | DJ2: COSTO MARGINAL | DL2: P | DM2: Y | DN2: P | DO2: Y | DP2: LineP(x)precio | DR2: LineP(y) | DT2: LineCU | DU2: LineP(x)costo | DV2: xqcomp | DW2: yqcompet | DY2: FUNCIÒN DE COSTOS | EB2: Ponderador | EC2: COSTO TOTAL | ED2: COSTO MEDIO | EF2: COSTO FIJO MEDIO | EG2: COSTO VARIABLE MEDIO | EH2: COSTO MARGINAL | EJ2: P | EK2: Y | EL2: Ynega | EM2: P | EN2: Y | EO2: Ynega | EP2: LineP(x)precio | ER2: LineP(y) | ET2: LineCU | EU2: LineP(x)costo | EV2: xqcomp | EW2: yqcompet | EZ2: FUNCIÒN DE COSTOS | FA2: CON impuesto | FB2: SIN impuesto | FC2: Ponderador | FD2: COSTO TOTAL | FE2: COSTO MEDIO | FG2: COSTO FIJO MEDIO | FH2: COSTO VARIABLE MEDIO | FI2: COSTO MARGINAL | FK2: P | FL2: Y | FM2: P | FN2: Y | FO2: LineP(x) | FQ2: LineP(y) | FS2: LineCU
D3: 0.00 | E3: =$B$7+($B$6*M3)+($B$5*(M3^2))+($B$4*(M3^3)) -> 500,000.00 | J3: =IF((3*$B$4*(M3^2))+(2*$B$5*(M3^1))+($B$6)<($B$8/$B$9*-1.7),(3*$B$4*(M3^2))+(2*$B$5*(M3^1))+($B$6),J2) -> 0.00 | L3: =(($B$8/$B$9)*-1)+((1/$B$9)*M3) -> 1,500.00 | M3: =$B$8*D3 -> 0.00 | N3: =L3 -> 1,500.00 | O3: =M3/2 -> 0.00 | P3: =$B$13*D3 -> 0.00 | Q3: =$B$12 -> 1,100.42 | R3: =$B$12*D3 -> 0.00 | S3: =$B$13 -> 1,598.32 | T3: =$B$16 -> 280.1 | Z3: 0.00 | AA3: =$X$6+($X$5*AI3)+($X$4*(AI3^2)) -> 100.00 | AF3: =IF(((2*$X$4*(AI3))+($X$5))<$X$9,((2*$X$4*(AI3))+($X$5)),AF2) -> -10.00 | AH3: =(($X$7/$X$8)*-1)+((1/$X$8)*AI3) -> 250.00 | AI3: =$X$7*Z3 -> 0.00 | AJ3: =AH3 -> 250.00 | AK3: =AI3/2 -> 0.00 | AL3: =$X$12*Z3 -> 0.00 | AM3: =$X$11 -> 185.00 | AN3: =$X$11*Z3 -> 0.00 | AO3: =$X$12 -> 130.00 | AP3: =$X$15 -> 55.8 | AZ3: 0.00 | BA3: =$AX$6+($AX$5*BI3)+($AX$4*(BI3^2)) -> 20.00 | BF3: =IF(((2*$AX$4*(BI3))+($AX$5))<$AX$9,((2*$AX$4*(BI3))+($AX$5)),BF2) -> 20.00 | BH3: =(($AX$7/$AX$8)*-1)+((1/$AX$8)*BI3) -> 250.00 | BI3: =$AX$7*AZ3 -> 0.00 | BJ3: =BH3 -> 250.00 | BK3: =BI3/2 -> 0.00 | BL3: =MAX($AX$12,$AX$34)*AZ3 -> 0.00 | BM3: =$AX$11 -> 141.51 | BN3: =$AX$11*AZ3 -> 0.00 | BO3: =$AX$12 -> 216.98 | BP3: =$AX$33 -> 44.6 | BQ3: =$AX$12*AZ3 -> 0.00 | BR3: =$AX$33*AZ3 -> 0.00 | BS3: =$AX$34 -> 410.71 | BZ3: 0.00 | CA3: =$BX$6+($BX$5*CI3)+($BX$4*(CI3^2)) -> 20.00 | CF3: =IF(((2*$BX$4*(CI3))+($BX$5))<$BX$9,((2*$BX$4*(CI3))+($BX$5)),CF2) -> 100.00 | CH3: =(($BX$7/$BX$8)*-1)+((1/$BX$8)*CI3) -> 200.00 | CI3: =$BX$7*BZ3 -> 0.00 | CJ3: =CH3 -> 200.00 | CK3: =CI3/2 -> 0.00 | CL3: =MAX($BX$12,$BX$34)*BZ3 -> 0.00 | CM3: =$BX$11 -> 150.00 | CN3: =$BX$11*BZ3 -> 0.00 | CO3: =$BX$12 -> 100.00 | CP3: =$BX$33 -> 100.0 | CQ3: =$BX$12*BZ3 -> 0.00 | CR3: =$BX$33*BZ3 -> 0.00 | CS3: =$BX$34 -> 200.00 | DD3: 0.00 | DE3: =$DB$6+($DB$5*DM3)+($DB$4*(DM3^2)) -> 2,000.00 | DJ3: =IF(((2*$DB$4*(DM3))+($DB$5))<$DB$9,((2*$DB$4*(DM3))+($DB$5)),DJ2) -> 20.00 | DL3: =(($DB$7/$DB$8)*-1)+((1/$DB$8)*DM3) -> 250.00 | DM3: =$DB$7*DD3 -> 0.00 | DN3: =DL3 -> 250.00 | DO3: =DM3/2 -> 0.00 | DP3: =$DB$11*DD3 -> 0.00 | DQ3: =$DB$10 -> 135.00 | DR3: =$DB$10*DD3 -> 0.00 | DS3: =$DB$11 -> 230.00 | DT3: =#REF! ->  | DU3: =$DB$11*DD3 -> 0.00 | DV3: =#REF!*DD3 ->  | DW3: =$DB$35 -> 0.00 | EB3: 0.00 | EC3: =$DZ$6+($DZ$5*EK3)+($DZ$4*(EK3^2)) -> 2,000.00 | EH3: =IF(((2*$DZ$4*(EK3))+($DZ$5))<$DZ$9,((2*$DZ$4*(EK3))+($DZ$5)),EH2) -> 20.00 | EJ3: =(($DZ$7/$DZ$8)*-1)+((1/$DZ$8)*EK3) -> 200.00 | EK3: =$DZ$7*EB3 -> 0.00 | EL3: =EK3*-1 -> 0.00 | EM3: =EJ3 -> 200.00 | EN3: =EK3/2 -> 0.00 | EO3: =EN3*-1 -> 0.00 | EP3: =$DZ$11*EB3*-1 -> 0.00 | EQ3: =$DZ$10 -> 110.00 | ER3: =$DZ$10*EB3 -> 0.00 | ES3: =$DZ$11*-1 -> -900.00 | ET3: =#REF! ->  | EU3: =$DZ$11*EB3 -> 0.00 | EV3: =#REF!*EB3 ->  | EW3: =$DZ$35 -> 0.00 | EZ3: a | FA3: =prueba!C6 -> 0.05 | FC3: 0.00 | FD3: =$X$6+($X$5*FL3)+($X$4*(FL3^2)) -> 100.00 | FI3: =IF(((2*$X$4*(FL3))+($X$5))<$X$9,((2*$X$4*(FL3))+($X$5)),FI2) -> -10.00 | FK3: =(($X$7/$X$8)*-1)+((1/$X$8)*FL3) -> 250.00 | FL3: =$X$7*FC3 -> 0.00 | FM3: =FK3 -> 250.00 | FN3: =FL3/2 -> 0.00 | FO3: =$X$12*FC3 -> 0.00 | FP3: =$X$11 -> 185.00 | FQ3: =$X$11*FC3 -> 0.00 | FR3: =$X$12 -> 130.00 | FS3: =$X$15 -> 55.8
A4: a | B4: =Mono_maxben_cp_3g!C6 -> 0.0 | C4: Y3 | D4: 0.05 | E4: =$B$7+($B$6*M4)+($B$5*(M4^2))+($B$4*(M4^3)) -> 463,100.00 | F4: =E4/M4 -> 1,543.67 | G4: =IF(F4=F3,G3,M4) -> 300.00 | H4: =$B$7/M4 -> 1,666.67 | I4: =F4-H4 -> -123.00 | J4: =IF((3*$B$4*(M4^2))+(2*$B$5*(M4^1))+($B$6)<($B$8/$B$9*-1.7),(3*$B$4*(M4^2))+(2*$B$5*(M4^1))+($B$6),J3) -> -219.00 | K4: =IF(J4=J3,K3,M4) -> 300.00 | L4: 1,425.00 | M4: 300.00 | N4: =L4 -> 1,425.00 | O4: =M4/2 -> 150.00 | P4: 79.92 | Q4: 1,100.42 | R4: 55.02 | S4: 1,598.32 | T4: =$B$16 -> 280.1 | W4: a | X4: =+Mono_maxben_cp_2g!C6 -> 0.50 | Y4: =+Mono_maxben_cp_2g!C6 -> 0.5 | Z4: 0.05 | AA4: =$X$6+($X$5*AI4)+($X$4*(AI4^2)) -> 162.50 | AB4: =AA4/AI4 -> 6.50 | AC4: =IF(AB4=AB3,AC3,AI4) -> 25.00 | AD4: =$X$6/AI4 -> 4.00 | AE4: =AB4-AD4 -> 2.50 | AF4: =IF(((2*$X$4*(AI4))+($X$5))<$X$9,((2*$X$4*(AI4))+($X$5)),AF3) -> 15.00 | AG4: =IF(AF4=AF3,AG3,AI4) -> 25.00 | AH4: =(($X$7/$X$8)*-1)+((1/$X$8)*AI4) -> 237.50 | AI4: =$X$7*Z4 -> 25.00 | AJ4: =AH4 -> 237.50 | AK4: =AI4/2 -> 12.50 | AL4: =$X$12*Z4 -> 6.50 | AM4: 185.00 | AN4: =$X$11*Z4 -> 9.25 | AO4: 130.00 | AP4: 55.8 | AW4: a | AX4: ='Discriminacion 1'!C6 -> 0.03 | AY4: Y2 | AZ4: 0.05 | BA4: =$AX$6+($AX$5*BI4)+($AX$4*(BI4^2)) -> 538.75 | BB4: =BA4/BI4 -> 21.55 | BC4: =IF(BB4=BB3,BC3,BI4) -> 25.00 | BD4: =$AX$6/BI4 -> 0.80 | BE4: =BB4-BD4 -> 20.75 | BF4: =IF(((2*$AX$4*(BI4))+($AX$5))<$AX$9,((2*$AX$4*(BI4))+($AX$5)),BF3) -> 21.50 | BG4: =IF(BF4=BF3,BG3,BI4) -> 25.00 | BH4: =(($AX$7/$AX$8)*-1)+((1/$AX$8)*BI4) -> 237.50 | BI4: =$AX$7*AZ4 -> 25.00 | BJ4: =BH4 -> 237.50 | BK4: =BI4/2 -> 12.50 | BL4: =MAX($AX$12,$AX$34)*AZ4 -> 20.54 | BM4: =$AX$11 -> 141.51 | BN4: =$AX$11*AZ4 -> 7.08 | BO4: =$AX$12 -> 216.98 | BP4: =$AX$33 -> 44.6 | BQ4: =$AX$12*AZ4 -> 10.85 | BR4: 2.23 | BS4: =$AX$34 -> 410.71 | BW4: a | BX4: ='Discriminacion 2'!C6 -> 0.00 | BY4: Y2 | BZ4: 0.05 | CA4: =$BX$6+($BX$5*CI4)+($BX$4*(CI4^2)) -> 2,020.00 | CB4: =CA4/CI4 -> 101.00 | CC4: =IF(CB4=CB3,CC3,CI4) -> 20.00 | CD4: =$BX$6/CI4 -> 1.00 | CE4: =CB4-CD4 -> 100.00 | CF4: =IF(((2*$BX$4*(CI4))+($BX$5))<$BX$9,((2*$BX$4*(CI4))+($BX$5)),CF3) -> 100.00 | CG4: =IF(CF4=CF3,CG3,CI4) -> 0.00 | CH4: =(($BX$7/$BX$8)*-1)+((1/$BX$8)*CI4) -> 190.00 | CI4: =$BX$7*BZ4 -> 20.00 | CJ4: =CH4 -> 190.00 | CK4: =CI4/2 -> 10.00 | CL4: =MAX($BX$12,$BX$34)*BZ4 -> 10.00 | CM4: =$BX$11 -> 150.00 | CN4: =$BX$11*BZ4 -> 7.50 | CO4: =$BX$12 -> 100.00 | CP4: =$BX$33 -> 100.0 | CQ4: =$BX$12*BZ4 -> 5.00 | CR4: =$BX$33*BZ4 -> 5.00 | CS4: =$BX$34 -> 200.00 | DA4: b | DB4: ='Discriminacion 3'!C6 -> 0.00 | DC4: Y2 | DD4: 0.05 | DE4: =$DB$6+($DB$5*DM4)+($DB$4*(DM4^2)) -> 2,500.00 | DF4: =DE4/DM4 -> 100.00 | DG4: =IF(DF4=DF3,DG3,DM4) -> 25.00 | DH4: =$DB$6/DM4 -> 80.00 | DI4: =DF4-DH4 -> 20.00 | DJ4: =IF(((2*$DB$4*(DM4))+($DB$5))<$DB$9,((2*$DB$4*(DM4))+($DB$5)),DJ3) -> 20.00 | DK4: =IF(DJ4=DJ3,DK3,DM4) -> 25.00 | DL4: =(($DB$7/$DB$8)*-1)+((1/$DB$8)*DM4) -> 237.50 | DM4: =$DB$7*DD4 -> 25.00 | DN4: =DL4 -> 237.50 | DO4: =DM4/2 -> 12.50 | DP4: 11.50 | DQ4: 135.00 | DR4: 6.75 | DS4: 230.00 | DT4: =#REF! ->  | DU4: 11.50 | DV4: =#REF!*DD4 ->  | DW4: =$DB$35 -> 0.00 | DY4: a | DZ4: =DB4 -> 0.00 | EA4: Y2 | EB4: 0.05 | EC4: =$DZ$6+($DZ$5*EK4)+($DZ$4*(EK4^2)) -> 4,000.00 | ED4: =EC4/EK4 -> 40.00 | EE4: =IF(ED4=ED3,EE3,EK4) -> 100.00 | EF4: =$DZ$6/EK4 -> 20.00 | EG4: =ED4-EF4 -> 20.00 | EH4: =IF(((2*$DZ$4*(EK4))+($DZ$5))<$DZ$9,((2*$DZ$4*(EK4))+($DZ$5)),EH3) -> 20.00 | EI4: =(IF(EH4=EH3,EI3,EK4))*-1 -> -100.00 | EJ4: =(($DZ$7/$DZ$8)*-1)+((1/$DZ$8)*EK4) -> 190.00 | EK4: =$DZ$7*EB4 -> 100.00 | EL4: =EK4*-1 -> -100.00 | EM4: =EJ4 -> 190.00 | EN4: 50.00 | EO4: =EN4*-1 -> -50.00 | EP4: =$DZ$11*EB4*-1 -> -45.00 | EQ4: =$DZ$10 -> 110.00 | ER4: =$DZ$10*EB4 -> 5.50 | ES4: =$DZ$11*-1 -> -900.00 | ET4: =#REF! ->  | EU4: =$DZ$11*EB4 -> 45.00 | EV4: =#REF!*EB4 ->  | EW4: =$DZ$35 -> 0.00 | EZ4: b | FA4: =FB4 -> -0.50 | FB4: =prueba!C7 -> -0.5 | FC4: 0.05 | FD4: =$X$6+($X$5*FL4)+($X$4*(FL4^2)) -> 162.50 | FE4: =FD4/FL4 -> 6.50 | FF4: =IF(FE4=FE3,FF3,FL4) -> 25.00 | FG4: =$X$6/FL4 -> 4.00 | FH4: =FE4-FG4 -> 2.50 | FI4: =IF(((2*$X$4*(FL4))+($X$5))<$X$9,((2*$X$4*(FL4))+($X$5)),FI3) -> 15.00 | FJ4: =IF(FI4=FI3,FJ3,FL4) -> 25.00 | FK4: =(($X$7/$X$8)*-1)+((1/$X$8)*FL4) -> 237.50 | FL4: =$X$7*FC4 -> 25.00 | FM4: =FK4 -> 237.50 | FN4: =FL4/2 -> 12.50 | FO4: =$X$12*FC4 -> 6.50 | FP4: 185.00 | FQ4: =$X$11*FC4 -> 9.25 | FR4: 130.00 | FS4: 55.8
A5: b | B5: =Mono_maxben_cp_3g!C7 -> -0.5 | C5: Y2 | D5: 0.10 | E5: 384,800.00 | F5: 641.33 | G5: =IF(F5=F4,G4,M5) -> 600.00 | H5: 833.33 | I5: -192.00 | J5: -276.00 | K5: =IF(J5=J4,K4,M5) -> 600.00 | L5: 1,350.00 | M5: 600.00 | N5: 1,350.00 | O5: 300.00 | P5: 159.83 | Q5: 1,100.42 | R5: 110.04 | S5: 1,598.32 | T5: 280.1 | W5: b | X5: =+Mono_maxben_cp_2g!C7+X10 -> -10.00 | Y5: =+Mono_maxben_cp_2g!C7 -> -10 | Z5: 0.10 | AA5: 850.00 | AB5: =AA5/AI5 -> 17.00 | AC5: =IF(AB5=AB4,AC4,AI5) -> 50.00 | AD5: =$X$6/AI5 -> 2.00 | AE5: 15.00 | AF5: 40.00 | AG5: =IF(AF5=AF4,AG4,AI5) -> 50.00 | AH5: 225.00 | AI5: 50.00 | AJ5: 225.00 | AK5: 25.00 | AL5: 13.00 | AM5: 185.00 | AN5: 18.50 | AO5: 130.00 | AP5: 55.8 | AW5: b | AX5: ='Discriminacion 1'!C7 -> 20.00 | AY5: Y | AZ5: 0.10 | BA5: 1,095.00 | BB5: =BA5/BI5 -> 21.90 | BC5: =IF(BB5=BB4,BC4,BI5) -> 50.00 | BD5: =$AX$6/BI5 -> 0.40 | BE5: 21.50 | BF5: 23.00 | BG5: =IF(BF5=BF4,BG4,BI5) -> 50.00 | BH5: 225.00 | BI5: 50.00 | BJ5: 225.00 | BK5: 25.00 | BL5: 41.07 | BM5: 141.51 | BN5: 14.15 | BO5: 216.98 | BP5: 44.6 | BQ5: 21.70 | BR5: 4.46 | BS5: 410.71 | BW5: b | BX5: ='Discriminacion 2'!C7 -> 100.00 | BY5: Y | BZ5: 0.10 | CA5: 4,020.00 | CB5: =CA5/CI5 -> 100.50 | CC5: =IF(CB5=CB4,CC4,CI5) -> 40.00 | CD5: =$BX$6/CI5 -> 0.50 | CE5: 100.00 | CF5: 100.00 | CG5: =IF(CF5=CF4,CG4,CI5) -> 0.00 | CH5: 180.00 | CI5: 40.00 | CJ5: 180.00 | CK5: 20.00 | CL5: 20.00 | CM5: 150.00 | CN5: 15.00 | CO5: 100.00 | CP5: 100.0 | CQ5: 10.00 | CR5: 10.00 | CS5: 200.00 | DA5: c | DB5: ='Discriminacion 3'!C7 -> 20.00 | DC5: Y | DD5: 0.10 | DE5: 3,000.00 | DF5: =DE5/DM5 -> 60.00 | DG5: =IF(DF5=DF4,DG4,DM5) -> 50.00 | DH5: =$DB$6/DM5 -> 40.00 | DI5: =DF5-DH5 -> 20.00 | DJ5: 20.00 | DK5: =IF(DJ5=DJ4,DK4,DM5) -> 50.00 | DL5: 225.00 | DM5: 50.00 | DN5: 225.00 | DO5: 25.00 | DP5: 23.00 | DQ5: 135.00 | DR5: 13.50 | DS5: 230.00 | DT5: =#REF! ->  | DU5: 23.00 | DV5: =#REF!*DD5 ->  | DW5: 0.00 | DY5: b | DZ5: =DB5 -> 20.00 | EA5: Y | EB5: 0.10 | EC5: 6,000.00 | ED5: =EC5/EK5 -> 30.00 | EE5: =IF(ED5=ED4,EE4,EK5) -> 200.00 | EF5: =$DZ$6/EK5 -> 10.00 | EG5: =ED5-EF5 -> 20.00 | EH5: 20.00 | EI5: =(IF(EH5=EH4,EI4,EK5))*-1 -> -200.00 | EJ5: 180.00 | EK5: 200.00 | EL5: -200.00 | EM5: 180.00 | EN5: 100.00 | EO5: -100.00 | EP5: -90.00 | EQ5: 110.00 | ER5: 11.00 | ES5: -900.00 | ET5: =#REF! ->  | EU5: 90.00 | EV5: =#REF!*EB5 ->  | EW5: 0.00 | EZ5: c | FA5: =FB5+FA10 -> 10.00 | FB5: =prueba!C8 -> 10 | FC5: 0.10 | FD5: 850.00 | FE5: =FD5/FL5 -> 17.00 | FF5: =IF(FE5=FE4,FF4,FL5) -> 50.00 | FG5: =$X$6/FL5 -> 2.00 | FH5: 15.00 | FI5: 40.00 | FJ5: =IF(FI5=FI4,FJ4,FL5) -> 50.00 | FK5: 225.00 | FL5: 50.00 | FM5: 225.00 | FN5: 25.00 | FO5: 13.00 | FP5: 185.00 | FQ5: 18.50 | FR5: 130.00 | FS5: 55.8
A6: c | B6: =Mono_maxben_cp_3g!C8 -> 0.0 | C6: Y | D6: 0.15 | E6: 313,700.00 | F6: 348.56 | G6: 900.00 | H6: 555.56 | I6: -207.00 | J6: -171.00 | K6: 900.00 | L6: 1,275.00 | M6: 900.00 | N6: 1,275.00 | O6: 450.00 | P6: 239.75 | Q6: 1,100.42 | R6: 165.06 | S6: 1,598.32 | T6: 280.1 | W6: c | X6: =+Mono_maxben_cp_2g!C8 -> 100.00 | Y6: =+Mono_maxben_cp_2g!C8 -> 100 | Z6: 0.15 | AA6: 2,162.50 | AB6: =AA6/AI6 -> 28.83 | AC6: 75.00 | AD6: 1.33 | AE6: 27.50 | AF6: 65.00 | AG6: 75.00 | AH6: 212.50 | AI6: 75.00 | AJ6: 212.50 | AK6: 37.50 | AL6: 19.50 | AM6: 185.00 | AN6: 27.75 | AO6: 130.00 | AP6: 55.8 | AW6: c | AX6: ='Discriminacion 1'!C8 -> 20.00 | AY6: 0 | AZ6: 0.15 | BA6: 1,688.75 | BB6: =BA6/BI6 -> 22.52 | BC6: 75.00 | BD6: 0.27 | BE6: 22.25 | BF6: 24.50 | BG6: 75.00 | BH6: 212.50 | BI6: 75.00 | BJ6: 212.50 | BK6: 37.50 | BL6: 61.61 | BM6: 141.51 | BN6: 21.23 | BO6: 216.98 | BP6: 44.6 | BQ6: 32.55 | BR6: 6.70 | BS6: 410.71 | BW6: c | BX6: ='Discriminacion 2'!C8 -> 20.00 | BY6: 0 | BZ6: 0.15 | CA6: 6,020.00 | CB6: =CA6/CI6 -> 100.33 | CC6: 60.00 | CD6: 0.33 | CE6: 100.00 | CF6: 100.00 | CG6: 0.00 | CH6: 170.00 | CI6: 60.00 | CJ6: 170.00 | CK6: 30.00 | CL6: 30.00 | CM6: 150.00 | CN6: 22.50 | CO6: 100.00 | CP6: 100.0 | CQ6: 15.00 | CR6: 15.00 | CS6: 200.00 | DA6: d | DB6: ='Discriminacion 3'!C8 -> 2,000.00 | DC6: 0 | DD6: 0.15 | DE6: 3,500.00 | DF6: =DE6/DM6 -> 46.67 | DG6: 75.00 | DH6: 26.67 | DI6: 20.00 | DJ6: 20.00 | DK6: 75.00 | DL6: 212.50 | DM6: 75.00 | DN6: 212.50 | DO6: 37.50 | DP6: 34.50 | DQ6: 135.00 | DR6: 20.25 | DS6: 230.00 | DT6: =#REF! ->  | DU6: 34.50 | DV6: =#REF!*DD6 ->  | DW6: 0.00 | DY6: c | DZ6: =DB6 -> 2,000.00 | EA6: 0 | EB6: 0.15 | EC6: 8,000.00 | ED6: =EC6/EK6 -> 26.67 | EE6: 300.00 | EF6: 6.67 | EG6: 20.00 | EH6: 20.00 | EI6: -300.00 | EJ6: 170.00 | EK6: 300.00 | EL6: -300.00 | EM6: 170.00 | EN6: 150.00 | EO6: -150.00 | EP6: -135.00 | EQ6: 110.00 | ER6: 16.50 | ES6: -900.00 | ET6: =#REF! ->  | EU6: 135.00 | EV6: =#REF!*EB6 ->  | EW6: 0.00 | EZ6: d | FA6: =FB6 -> 100.00 | FB6: =prueba!C9 -> 100 | FC6: 0.15 | FD6: 2,162.50 | FE6: =FD6/FL6 -> 28.83 | FF6: 75.00 | FG6: 1.33 | FH6: 27.50 | FI6: 65.00 | FJ6: 75.00 | FK6: 212.50 | FL6: 75.00 | FM6: 212.50 | FN6: 37.50 | FO6: 19.50 | FP6: 185.00 | FQ6: 27.75 | FR6: 130.00 | FS6: 55.8
A7: d | B7: =Mono_maxben_cp_3g!C9 -> 500,000.00 | C7: 0 | D7: 0.20 | E7: 298,400.00 | F7: 248.67 | G7: 1,200.00 | H7: 416.67 | I7: -168.00 | J7: 96.00 | K7: 1,200.00 | L7: 1,200.00 | M7: 1,200.00 | N7: 1,200.00 | O7: 600.00 | P7: 319.66 | Q7: 1,100.42 | R7: 220.08 | S7: 1,598.32 | T7: 280.1 | W7: b0 | X7: =+Mono_maxben_cp_2g!C11 -> 500.00 | Y7: =+Mono_maxben_cp_2g!C11 -> 500 | Z7: 0.20 | AA7: 4,100.00 | AB7: =AA7/AI7 -> 41.00 | AC7: 100.00 | AD7: 1.00 | AE7: 40.00 | AF7: 90.00 | AG7: 100.00 | AH7: 200.00 | AI7: 100.00 | AJ7: 200.00 | AK7: 50.00 | AL7: 26.00 | AM7: 185.00 | AN7: 37.00 | AO7: 130.00 | AP7: 55.8 | AW7: b0 | AX7: ='Discriminacion 1'!C11 -> 500.00 | AZ7: 0.20 | BA7: 2,320.00 | BB7: =BA7/BI7 -> 23.20 | BC7: 100.00 | BD7: 0.20 | BE7: 23.00 | BF7: 26.00 | BG7: 100.00 | BH7: 200.00 | BI7: 100.00 | BJ7: 200.00 | BK7: 50.00 | BL7: 82.14 | BM7: 141.51 | BN7: 28.30 | BO7: 216.98 | BP7: 44.6 | BQ7: 43.40 | BR7: 8.93 | BS7: 410.71 | BW7: b0 | BX7: ='Discriminacion 2'!C11 -> 400.00 | BZ7: 0.20 | CA7: 8,020.00 | CB7: =CA7/CI7 -> 100.25 | CC7: 80.00 | CD7: 0.25 | CE7: 100.00 | CF7: 100.00 | CG7: 0.00 | CH7: 160.00 | CI7: 80.00 | CJ7: 160.00 | CK7: 40.00 | CL7: 40.00 | CM7: 150.00 | CN7: 30.00 | CO7: 100.00 | CP7: 100.0 | CQ7: 20.00 | CR7: 20.00 | CS7: 200.00 | DA7: b0 | DB7: ='Discriminacion 3'!C11 -> 500.00 | DD7: 0.20 | DE7: 4,000.00 | DF7: =DE7/DM7 -> 40.00 | DG7: 100.00 | DH7: 20.00 | DI7: 20.00 | DJ7: 20.00 | DK7: 100.00 | DL7: 200.00 | DM7: 100.00 | DN7: 200.00 | DO7: 50.00 | DP7: 46.00 | DQ7: 135.00 | DR7: 27.00 | DS7: 230.00 | DT7: =#REF! ->  | DU7: 46.00 | DV7: =#REF!*DD7 ->  | DW7: 0.00 | DY7: b0 | DZ7: ='Discriminacion 3'!E11 -> 2,000.00 | EB7: 0.20 | EC7: 10,000.00 | ED7: =EC7/EK7 -> 25.00 | EE7: 400.00 | EF7: 5.00 | EG7: 20.00 | EH7: 20.00 | EI7: -400.00 | EJ7: 160.00 | EK7: 400.00 | EL7: -400.00 | EM7: 160.00 | EN7: 200.00 | EO7: -200.00 | EP7: -180.00 | EQ7: 110.00 | ER7: 22.00 | ES7: -900.00 | ET7: =#REF! ->  | EU7: 180.00 | EV7: =#REF!*EB7 ->  | EW7: 0.00 | EZ7: b0 | FA7: =FB7 -> 500.00 | FB7: =prueba!C10 -> 500 | FC7: 0.20 | FD7: 4,100.00 | FE7: =FD7/FL7 -> 41.00 | FF7: 100.00 | FG7: 1.00 | FH7: 40.00 | FI7: 90.00 | FJ7: 100.00 | FK7: 200.00 | FL7: 100.00 | FM7: 200.00 | FN7: 50.00 | FO7: 26.00 | FP7: 185.00 | FQ7: 37.00 | FR7: 130.00 | FS7: 55.8
A8: b0 | B8: =Mono_maxben_cp_3g!C12 -> 6,000.0 | D8: 0.25 | E8: 387,500.00 | F8: 258.33 | G8: 1,500.00 | H8: 333.33 | I8: -75.00 | J8: 525.00 | K8: 1,500.00 | L8: 1,125.00 | M8: 1,500.00 | N8: 1,125.00 | O8: 750.00 | P8: 399.58 | Q8: 1,100.42 | R8: 275.11 | S8: 1,598.32 | T8: 280.1 | W8: b1 | X8: =+Mono_maxben_cp_2g!C12 -> -2.00 | Y8: =+Mono_maxben_cp_2g!C12 -> -2 | Z8: 0.25 | AA8: 6,662.50 | AB8: =AA8/AI8 -> 53.30 | AC8: 125.00 | AD8: 0.80 | AE8: 52.50 | AF8: 115.00 | AG8: 125.00 | AH8: 187.50 | AI8: 125.00 | AJ8: 187.50 | AK8: 62.50 | AL8: 32.50 | AM8: 185.00 | AN8: 46.25 | AO8: 130.00 | AP8: 55.8 | AW8: b1 | AX8: ='Discriminacion 1'!C12 -> -2.00 | AZ8: 0.25 | BA8: 2,988.75 | BB8: =BA8/BI8 -> 23.91 | BC8: 125.00 | BD8: 0.16 | BE8: 23.75 | BF8: 27.50 | BG8: 125.00 | BH8: 187.50 | BI8: 125.00 | BJ8: 187.50 | BK8: 62.50 | BL8: 102.68 | BM8: 141.51 | BN8: 35.38 | BO8: 216.98 | BP8: 44.6 | BQ8: 54.25 | BR8: 11.16 | BS8: 410.71 | BW8: b1 | BX8: ='Discriminacion 2'!C12 -> -2.00 | BZ8: 0.25 | CA8: 10,020.00 | CB8: =CA8/CI8 -> 100.20 | CC8: 100.00 | CD8: 0.20 | CE8: 100.00 | CF8: 100.00 | CG8: 0.00 | CH8: 150.00 | CI8: 100.00 | CJ8: 150.00 | CK8: 50.00 | CL8: 50.00 | CM8: 150.00 | CN8: 37.50 | CO8: 100.00 | CP8: 100.0 | CQ8: 25.00 | CR8: 25.00 | CS8: 200.00 | DA8: b1 | DB8: ='Discriminacion 3'!C12 -> -2.00 | DD8: 0.25 | DE8: 4,500.00 | DF8: =DE8/DM8 -> 36.00 | DG8: 125.00 | DH8: 16.00 | DI8: 20.00 | DJ8: 20.00 | DK8: 125.00 | DL8: 187.50 | DM8: 125.00 | DN8: 187.50 | DO8: 62.50 | DP8: 57.50 | DQ8: 135.00 | DR8: 33.75 | DS8: 230.00 | DT8: =#REF! ->  | DU8: 57.50 | DV8: =#REF!*DD8 ->  | DW8: 0.00 | DY8: b1 | DZ8: ='Discriminacion 3'!E12 -> -10.00 | EB8: 0.25 | EC8: 12,000.00 | ED8: =EC8/EK8 -> 24.00 | EE8: 500.00 | EF8: 4.00 | EG8: 20.00 | EH8: 20.00 | EI8: -500.00 | EJ8: 150.00 | EK8: 500.00 | EL8: -500.00 | EM8: 150.00 | EN8: 250.00 | EO8: -250.00 | EP8: -225.00 | EQ8: 110.00 | ER8: 27.50 | ES8: -900.00 | ET8: =#REF! ->  | EU8: 225.00 | EV8: =#REF!*EB8 ->  | EW8: 0.00 | EZ8: b1 | FA8: =FB8 -> -2.00 | FB8: =prueba!C11 -> -2 | FC8: 0.25 | FD8: 6,662.50 | FE8: =FD8/FL8 -> 53.30 | FF8: 125.00 | FG8: 0.80 | FH8: 52.50 | FI8: 115.00 | FJ8: 125.00 | FK8: 187.50 | FL8: 125.00 | FM8: 187.50 | FN8: 62.50 | FO8: 32.50 | FP8: 185.00 | FQ8: 46.25 | FR8: 130.00 | FS8: 55.8
A9: b1 | B9: =Mono_maxben_cp_3g!C13 -> -4.0 | D9: 0.30 | E9: 629,600.00 | F9: 349.78 | G9: 1,800.00 | H9: 277.78 | I9: 72.00 | J9: 1,116.00 | K9: 1,800.00 | L9: 1,050.00 | M9: 1,800.00 | N9: 1,050.00 | O9: 900.00 | P9: 479.50 | Q9: 1,100.42 | R9: 330.13 | S9: 1,598.32 | T9: 280.1 | X9: =X7/X8*-1 -> 250 | Z9: 0.30 | AA9: 9,850.00 | AB9: =IF((AA9/AI9)<$X$9,(AA9/AI9),AB8) -> 65.67 | AC9: 150.00 | AD9: 0.67 | AE9: 65.00 | AF9: 140.00 | AG9: 150.00 | AH9: 175.00 | AI9: 150.00 | AJ9: 175.00 | AK9: 75.00 | AL9: 39.00 | AM9: 185.00 | AN9: 55.50 | AO9: 130.00 | AP9: 55.8 | AX9: =AX7/AX8*-1 -> 250 | AZ9: 0.30 | BA9: 3,695.00 | BB9: =IF((BA9/BI9)<$AX$9,(BA9/BI9),BB8) -> 24.63 | BC9: 150.00 | BD9: 0.13 | BE9: 24.50 | BF9: 29.00 | BG9: 150.00 | BH9: 175.00 | BI9: 150.00 | BJ9: 175.00 | BK9: 75.00 | BL9: 123.21 | BM9: 141.51 | BN9: 42.45 | BO9: 216.98 | BP9: 44.6 | BQ9: 65.09 | BR9: 13.39 | BS9: 410.71 | BX9: =BX7/BX8*-1 -> 200 | BZ9: 0.30 | CA9: 12,020.00 | CB9: =IF((CA9/CI9)<$AX$9,(CA9/CI9),CB8) -> 100.17 | CC9: 120.00 | CD9: 0.17 | CE9: 100.00 | CF9: 100.00 | CG9: 0.00 | CH9: 140.00 | CI9: 120.00 | CJ9: 140.00 | CK9: 60.00 | CL9: 60.00 | CM9: 150.00 | CN9: 45.00 | CO9: 100.00 | CP9: 100.0 | CQ9: 30.00 | CR9: 30.00 | CS9: 200.00 | DB9: =DB7/DB8*-1 -> 250 | DD9: 0.30 | DE9: 5,000.00 | DF9: =IF((DE9/DM9)<$AX$9,(DE9/DM9),DF8) -> 33.33 | DG9: 150.00 | DH9: 13.33 | DI9: 20.00 | DJ9: 20.00 | DK9: 150.00 | DL9: 175.00 | DM9: 150.00 | DN9: 175.00 | DO9: 75.00 | DP9: 69.00 | DQ9: 135.00 | DR9: 40.50 | DS9: 230.00 | DT9: =#REF! ->  | DU9: 69.00 | DV9: =#REF!*DD9 ->  | DW9: 0.00 | DZ9: =DZ7/DZ8*-1 -> 200 | EB9: 0.30 | EC9: 14,000.00 | ED9: =IF((EC9/EK9)<$AX$9,(EC9/EK9),ED8) -> 23.33 | EE9: 600.00 | EF9: 3.33 | EG9: 20.00 | EH9: 20.00 | EI9: -600.00 | EJ9: 140.00 | EK9: 600.00 | EL9: -600.00 | EM9: 140.00 | EN9: 300.00 | EO9: -300.00 | EP9: -270.00 | EQ9: 110.00 | ER9: 33.00 | ES9: -900.00 | ET9: =#REF! ->  | EU9: 270.00 | EV9: =#REF!*EB9 ->  | EW9: 0.00 | FA9: =FA7/FA8*-1 -> 250 | FC9: 0.30 | FD9: 9,850.00 | FE9: =IF((FD9/FL9)<$X$9,(FD9/FL9),FE8) -> 65.67 | FF9: 150.00 | FG9: 0.67 | FH9: 65.00 | FI9: 140.00 | FJ9: 150.00 | FK9: 175.00 | FL9: 150.00 | FM9: 175.00 | FN9: 75.00 | FO9: 39.00 | FP9: 185.00 | FQ9: 55.50 | FR9: 130.00 | FS9: 55.8
D10: 0.35 | E10: 1,073,300.00 | F10: =IF((E10/M10)<($B$8/$B$9*-1),(E10/M10),F9) -> 511.10 | G10: 2,100.00 | H10: 238.10 | I10: 273.00 | J10: 1,869.00 | K10: 2,100.00 | L10: 975.00 | M10: 2,100.00 | N10: 975.00 | O10: 1,050.00 | P10: 559.41 | Q10: 1,100.42 | R10: 385.15 | S10: 1,598.32 | T10: 280.1 | W10: impuestos | X10: =Mono_maxben_cp_2g!D13 -> 0 | Y10: 0 | Z10: 0.35 | AA10: 13,662.50 | AB10: =IF((AA10/AI10)<$X$9,(AA10/AI10),AB9) -> 78.07 | AC10: 175.00 | AD10: 0.57 | AE10: 77.50 | AF10: 165.00 | AG10: 175.00 | AH10: 162.50 | AI10: 175.00 | AJ10: 162.50 | AK10: 87.50 | AL10: 45.50 | AM10: 185.00 | AN10: 64.75 | AO10: 130.00 | AP10: 55.8 | AZ10: 0.35 | BA10: 4,438.75 | BB10: =IF((BA10/BI10)<$AX$9,(BA10/BI10),BB9) -> 25.36 | BC10: 175.00 | BD10: 0.11 | BE10: 25.25 | BF10: 30.50 | BG10: 175.00 | BH10: 162.50 | BI10: 175.00 | BJ10: 162.50 | BK10: 87.50 | BL10: 143.75 | BM10: 141.51 | BN10: 49.53 | BO10: 216.98 | BP10: 44.6 | BQ10: 75.94 | BR10: 15.63 | BS10: 410.71 | BZ10: 0.35 | CA10: 14,020.00 | CB10: =IF((CA10/CI10)<$AX$9,(CA10/CI10),CB9) -> 100.14 | CC10: 140.00 | CD10: 0.14 | CE10: 100.00 | CF10: 100.00 | CG10: 0.00 | CH10: 130.00 | CI10: 140.00 | CJ10: 130.00 | CK10: 70.00 | CL10: 70.00 | CM10: 150.00 | CN10: 52.50 | CO10: 100.00 | CP10: 100.0 | CQ10: 35.00 | CR10: 35.00 | CS10: 200.00 | DA10: Precio de Equilibrio | DB10: =((DB7/DB8)*-1)+((1/DB8)*DB21) -> 135.0 | DD10: 0.35 | DE10: 5,500.00 | DF10: =IF((DE10/DM10)<$AX$9,(DE10/DM10),DF9) -> 31.43 | DG10: 175.00 | DH10: 11.43 | DI10: 20.00 | DJ10: 20.00 | DK10: 175.00 | DL10: 162.50 | DM10: 175.00 | DN10: 162.50 | DO10: 87.50 | DP10: 80.50 | DQ10: 135.00 | DR10: 47.25 | DS10: 230.00 | DT10: =#REF! ->  | DU10: 80.50 | DV10: =#REF!*DD10 ->  | DW10: 0.00 | DY10: Precio de Equilibrio | DZ10: =((DZ7/DZ8)*-1)+((1/DZ8)*DZ21) -> 110.0 | EB10: 0.35 | EC10: 16,000.00 | ED10: =IF((EC10/EK10)<$AX$9,(EC10/EK10),ED9) -> 22.86 | EE10: 700.00 | EF10: 2.86 | EG10: 20.00 | EH10: 20.00 | EI10: -700.00 | EJ10: 130.00 | EK10: 700.00 | EL10: -700.00 | EM10: 130.00 | EN10: 350.00 | EO10: -350.00 | EP10: -315.00 | EQ10: 110.00 | ER10: 38.50 | ES10: -900.00 | ET10: =#REF! ->  | EU10: 315.00 | EV10: =#REF!*EB10 ->  | EW10: 0.00 | EZ10: impuestos | FA10: =prueba!D14 -> 0 | FB10: 0 | FC10: 0.35 | FD10: 13,662.50 | FE10: =IF((FD10/FL10)<$X$9,(FD10/FL10),FE9) -> 78.07 | FF10: 175.00 | FG10: 0.57 | FH10: 77.50 | FI10: 165.00 | FJ10: 175.00 | FK10: 162.50 | FL10: 175.00 | FM10: 162.50 | FN10: 87.50 | FO10: 45.50 | FP10: 185.00 | FQ10: 64.75 | FR10: 130.00 | FS10: 55.8
D11: 0.40 | E11: 1,767,200.00 | F11: =IF((E11/M11)<($B$8/$B$9*-1),(E11/M11),F10) -> 736.33 | G11: 2,400.00 | H11: 208.33 | I11: 528.00 | J11: 1,869.00 | K11: 2,100.00 | L11: 900.00 | M11: 2,400.00 | N11: 900.00 | O11: 1,200.00 | P11: 639.33 | Q11: 1,100.42 | R11: 440.17 | S11: 1,598.32 | T11: 280.1 | W11: Precio de Equilibrio | X11: =((X7/X8)*-1)+((1/X8)*X20) -> 185.0 | Y11: =((Y7/Y8)*-1)+((1/Y8)*Y20) -> 185.0 | Z11: 0.40 | AA11: 18,100.00 | AB11: 90.50 | AC11: 200.00 | AD11: 0.50 | AE11: 90.00 | AF11: 190.00 | AG11: 200.00 | AH11: 150.00 | AI11: 200.00 | AJ11: 150.00 | AK11: 100.00 | AL11: 52.00 | AM11: 185.00 | AN11: 74.00 | AO11: 130.00 | AP11: 55.8 | AW11: Precio de Equilibrio | AX11: =((AX7/AX8)*-1)+((1/AX8)*AX20) -> 141.5 | AZ11: 0.40 | BA11: 5,220.00 | BB11: 26.10 | BC11: 200.00 | BD11: 0.10 | BE11: 26.00 | BF11: 32.00 | BG11: 200.00 | BH11: 150.00 | BI11: 200.00 | BJ11: 150.00 | BK11: 100.00 | BL11: 164.29 | BM11: 141.51 | BN11: 56.60 | BO11: 216.98 | BP11: 44.6 | BQ11: 86.79 | BR11: 17.86 | BS11: 410.71 | BW11: Precio de Equilibrio | BX11: =((BX7/BX8)*-1)+((1/BX8)*BX20) -> 150.0 | BZ11: 0.40 | CA11: 16,020.00 | CB11: 100.13 | CC11: 160.00 | CD11: 0.13 | CE11: 100.00 | CF11: 100.00 | CG11: 0.00 | CH11: 120.00 | CI11: 160.00 | CJ11: 120.00 | CK11: 80.00 | CL11: 80.00 | CM11: 150.00 | CN11: 60.00 | CO11: 100.00 | CP11: 100.0 | CQ11: 40.00 | CR11: 40.00 | CS11: 200.00 | DA11: Cantidad de Equilibrio | DB11: =DB21 -> 230.0 | DD11: 0.40 | DE11: 6,000.00 | DF11: 30.00 | DG11: 200.00 | DH11: 10.00 | DI11: 20.00 | DJ11: 20.00 | DK11: 200.00 | DL11: 150.00 | DM11: 200.00 | DN11: 150.00 | DO11: 100.00 | DP11: 92.00 | DQ11: 135.00 | DR11: 54.00 | DS11: 230.00 | DT11: =#REF! ->  | DU11: 92.00 | DV11: =#REF!*DD11 ->  | DW11: 0.00 | DY11: Cantidad de Equilibrio | DZ11: =DZ21 -> 900.0 | EA11: =DZ11*-1 -> -899.99991 | EB11: 0.40 | EC11: 18,000.01 | ED11: 22.50 | EE11: 800.00 | EF11: 2.50 | EG11: 20.00 | EH11: 20.00 | EI11: -800.00 | EJ11: 120.00 | EK11: 800.00 | EL11: -800.00 | EM11: 120.00 | EN11: 400.00 | EO11: -400.00 | EP11: -360.00 | EQ11: 110.00 | ER11: 44.00 | ES11: -900.00 | ET11: =#REF! ->  | EU11: 360.00 | EV11: =#REF!*EB11 ->  | EW11: 0.00 | EZ11: Precio de Equilibrio | FA11: =((FA7/FA8)*-1)+((1/FA8)*FA20) -> -1,750.0 | FB11: =((FB7/FB8)*-1)+((1/FB8)*FB20) ->  | FC11: 0.40 | FD11: 18,100.00 | FE11: 90.50 | FF11: 200.00 | FG11: 0.50 | FH11: 90.00 | FI11: 190.00 | FJ11: 200.00 | FK11: 150.00 | FL11: 200.00 | FM11: 150.00 | FN11: 100.00 | FO11: 52.00 | FP11: 185.00 | FQ11: 74.00 | FR11: 130.00 | FS11: 55.8
A12: Precio de Equilibrio | B12: =((B8/B9)*-1)+((1/B9)*B37) -> 1,100.4 | D12: 0.45 | E12: 2,759,900.00 | F12: 1,022.19 | G12: 2,700.00 | H12: 185.19 | I12: 837.00 | J12: 1,869.00 | K12: 2,100.00 | L12: 825.00 | M12: 2,700.00 | N12: 825.00 | O12: 1,350.00 | P12: 719.24 | Q12: 1,100.42 | R12: 495.19 | S12: 1,598.32 | T12: 280.1 | W12: Cantidad de Equilibrio | X12: =X20 -> 130.0 | Y12: =Y20 -> 130.0 | Z12: 0.45 | AA12: 23,162.50 | AB12: 102.94 | AC12: 225.00 | AD12: 0.44 | AE12: 102.50 | AF12: 215.00 | AG12: 225.00 | AH12: 137.50 | AI12: 225.00 | AJ12: 137.50 | AK12: 112.50 | AL12: 58.50 | AM12: 185.00 | AN12: 83.25 | AO12: 130.00 | AP12: 55.8 | AW12: Cantidad de Equilibrio | AX12: =AX20 -> 217.0 | AZ12: 0.45 | BA12: 6,038.75 | BB12: 26.84 | BC12: 225.00 | BD12: 0.09 | BE12: 26.75 | BF12: 33.50 | BG12: 225.00 | BH12: 137.50 | BI12: 225.00 | BJ12: 137.50 | BK12: 112.50 | BL12: 184.82 | BM12: 141.51 | BN12: 63.68 | BO12: 216.98 | BP12: 44.6 | BQ12: 97.64 | BR12: 20.09 | BS12: 410.71 | BW12: Cantidad de Equilibrio | BX12: =BX20 -> 100.0 | BZ12: 0.45 | CA12: 18,020.00 | CB12: 100.11 | CC12: 180.00 | CD12: 0.11 | CE12: 100.00 | CF12: 100.00 | CG12: 0.00 | CH12: 110.00 | CI12: 180.00 | CJ12: 110.00 | CK12: 90.00 | CL12: 90.00 | CM12: 150.00 | CN12: 67.50 | CO12: 100.00 | CP12: 100.0 | CQ12: 45.00 | CR12: 45.00 | CS12: 200.00 | DA12: Elasticidad | DB12: =DB8*(DB10/DB11) -> -1.2 | DD12: 0.45 | DE12: 6,500.00 | DF12: 28.89 | DG12: 225.00 | DH12: 8.89 | DI12: 20.00 | DJ12: 20.00 | DK12: 225.00 | DL12: 137.50 | DM12: 225.00 | DN12: 137.50 | DO12: 112.50 | DP12: 103.50 | DQ12: 135.00 | DR12: 60.75 | DS12: 230.00 | DT12: =#REF! ->  | DU12: 103.50 | DV12: =#REF!*DD12 ->  | DW12: 0.00 | DY12: Elasticidad | DZ12: =DZ8*(DZ10/DZ11) -> -1.2 | EB12: 0.45 | EC12: 20,000.01 | ED12: 22.22 | EE12: 900.00 | EF12: 2.22 | EG12: 20.00 | EH12: 20.00 | EI12: -900.00 | EJ12: 110.00 | EK12: 900.00 | EL12: -900.00 | EM12: 110.00 | EN12: 450.00 | EO12: -450.00 | EP12: -405.00 | EQ12: 110.00 | ER12: 49.50 | ES12: -900.00 | ET12: =#REF! ->  | EU12: 405.00 | EV12: =#REF!*EB12 ->  | EW12: 0.00 | EZ12: Cantidad de Equilibrio | FA12: =FA20 -> 4,000.0 | FB12: =FB20 ->  | FC12: 0.45 | FD12: 23,162.50 | FE12: 102.94 | FF12: 225.00 | FG12: 0.44 | FH12: 102.50 | FI12: 215.00 | FJ12: 225.00 | FK12: 137.50 | FL12: 225.00 | FM12: 137.50 | FN12: 112.50 | FO12: 58.50 | FP12: 185.00 | FQ12: 83.25 | FR12: 130.00 | FS12: 55.8
A13: Cantidad de Equilibrio | B13: =B37 -> 1,598.3 | D13: 0.50 | E13: 4,100,000.00 | F13: 1,366.67 | G13: 3,000.00 | H13: 166.67 | I13: 1,200.00 | J13: 1,869.00 | K13: 2,100.00 | L13: 750.00 | M13: 3,000.00 | N13: 750.00 | O13: 1,500.00 | P13: 799.16 | Q13: 1,100.42 | R13: 550.21 | S13: 1,598.32 | T13: 280.1 | W13: Ingreso Marginal | X13: =((X7/X8)*-1)+((2/X8)*X20) -> 120.0 | Y13: =((Y7/Y8)*-1)+((2/Y8)*Y20) -> 120.0 | Z13: 0.50 | AA13: 28,850.00 | AB13: 115.40 | AC13: 250.00 | AD13: 0.40 | AE13: 115.00 | AF13: 240.00 | AG13: 250.00 | AH13: 125.00 | AI13: 250.00 | AJ13: 125.00 | AK13: 125.00 | AL13: 65.00 | AM13: 185.00 | AN13: 92.50 | AO13: 130.00 | AP13: 55.8 | AW13: Ingreso Marginal | AX13: =((AX7/AX8)*-1)+((2/AX8)*AX20) -> 33.0 | AZ13: 0.50 | BA13: 6,895.00 | BB13: 27.58 | BC13: 250.00 | BD13: 0.08 | BE13: 27.50 | BF13: 35.00 | BG13: 250.00 | BH13: 125.00 | BI13: 250.00 | BJ13: 125.00 | BK13: 125.00 | BL13: 205.36 | BM13: 141.51 | BN13: 70.75 | BO13: 216.98 | BP13: 44.6 | BQ13: 108.49 | BR13: 22.32 | BS13: 410.71 | BW13: Ingreso Marginal | BX13: =((BX7/BX8)*-1)+((2/BX8)*BX20) -> 100.0 | BZ13: 0.50 | CA13: 20,020.00 | CB13: 100.10 | CC13: 200.00 | CD13: 0.10 | CE13: 100.00 | CF13: 100.00 | CG13: 0.00 | CH13: 100.00 | CI13: 200.00 | CJ13: 100.00 | CK13: 100.00 | CL13: 100.00 | CM13: 150.00 | CN13: 75.00 | CO13: 100.00 | CP13: 100.0 | CQ13: 50.00 | CR13: 50.00 | CS13: 200.00 | DD13: 0.50 | DE13: 7,000.00 | DF13: 28.00 | DG13: 250.00 | DH13: 8.00 | DI13: 20.00 | DJ13: 20.00 | DK13: 250.00 | DL13: 125.00 | DM13: 250.00 | DN13: 125.00 | DO13: 125.00 | DP13: 115.00 | DQ13: 135.00 | DR13: 67.50 | DS13: 230.00 | DT13: =#REF! ->  | DU13: 115.00 | DV13: =#REF!*DD13 ->  | DW13: 0.00 | EB13: 0.50 | EC13: 22,000.01 | ED13: 22.00 | EE13: 1,000.00 | EF13: 2.00 | EG13: 20.00 | EH13: 20.00 | EI13: -1,000.00 | EJ13: 100.00 | EK13: 1,000.00 | EL13: -1,000.00 | EM13: 100.00 | EN13: 500.00 | EO13: -500.00 | EP13: -450.00 | EQ13: 110.00 | ER13: 55.00 | ES13: -900.00 | ET13: =#REF! ->  | EU13: 450.00 | EV13: =#REF!*EB13 ->  | EW13: 0.00 | EZ13: Ingreso Marginal | FA13: =(1+FA8)*(FA7*FA20^(FA8)) -> -0.0 | FB13: =((FB7/FB8)*-1)+((2/FB8)*FB20) ->  | FC13: 0.50 | FD13: 28,850.00 | FE13: 115.40 | FF13: 250.00 | FG13: 0.40 | FH13: 115.00 | FI13: 240.00 | FJ13: 250.00 | FK13: 125.00 | FL13: 250.00 | FM13: 125.00 | FN13: 125.00 | FO13: 65.00 | FP13: 185.00 | FQ13: 92.50 | FR13: 130.00 | FS13: 55.8
A14: Ingreso Marginal | B14: =((B8/B9)*-1)+((2/B9)*B37) -> 700.8 | D14: 0.55 | E14: 5,836,100.00 | F14: 1,366.67 | G14: 3,000.00 | H14: 151.52 | I14: 1,215.15 | J14: 1,869.00 | K14: 2,100.00 | L14: 675.00 | M14: 3,300.00 | N14: 675.00 | O14: 1,650.00 | P14: 879.08 | Q14: 1,100.42 | R14: 605.23 | S14: 1,598.32 | T14: 280.1 | W14: Costo Marginal | X14: =(2*(X4*X20))+(X5) -> 120.0 | Y14: =(2*(Y4*Y20))+(Y5) -> 120.0 | Z14: 0.55 | AA14: 35,162.50 | AB14: 127.86 | AC14: 275.00 | AD14: 0.36 | AE14: 127.50 | AF14: 240.00 | AG14: 250.00 | AH14: 112.50 | AI14: 275.00 | AJ14: 112.50 | AK14: 137.50 | AL14: 71.50 | AM14: 185.00 | AN14: 101.75 | AO14: 130.00 | AP14: 55.8 | AW14: Costo Marginal | AX14: =(2*(AX4*AX20))+(AX5) -> 33.0 | AZ14: 0.55 | BA14: 7,788.75 | BB14: 28.32 | BC14: 275.00 | BD14: 0.07 | BE14: 28.25 | BF14: 36.50 | BG14: 275.00 | BH14: 112.50 | BI14: 275.00 | BJ14: 112.50 | BK14: 137.50 | BL14: 225.89 | BM14: 141.51 | BN14: 77.83 | BO14: 216.98 | BP14: 44.6 | BQ14: 119.34 | BR14: 24.55 | BS14: 410.71 | BW14: Costo Marginal | BX14: =(2*(BX4*BX20))+(BX5) -> 100.0 | BZ14: 0.55 | CA14: 22,020.00 | CB14: 100.09 | CC14: 220.00 | CD14: 0.09 | CE14: 100.00 | CF14: 100.00 | CG14: 0.00 | CH14: 90.00 | CI14: 220.00 | CJ14: 90.00 | CK14: 110.00 | CL14: 110.00 | CM14: 150.00 | CN14: 82.50 | CO14: 100.00 | CP14: 100.0 | CQ14: 55.00 | CR14: 55.00 | CS14: 200.00 | DA14: Ingreso Marginal | DB14: =((DB7/DB8)*-1)+((2/DB8)*DB21) -> 20.0 | DD14: 0.55 | DE14: 7,500.00 | DF14: 27.27 | DG14: 275.00 | DH14: 7.27 | DI14: 20.00 | DJ14: 20.00 | DK14: 275.00 | DL14: 112.50 | DM14: 275.00 | DN14: 112.50 | DO14: 137.50 | DP14: 126.50 | DQ14: 135.00 | DR14: 74.25 | DS14: 230.00 | DT14: =#REF! ->  | DU14: 126.50 | DV14: =#REF!*DD14 ->  | DW14: 0.00 | DY14: Ingreso Marginal | DZ14: =((DZ7/DZ8)*-1)+((2/DZ8)*DZ21) -> 20.0 | EB14: 0.55 | EC14: 24,000.01 | ED14: 21.82 | EE14: 1,100.00 | EF14: 1.82 | EG14: 20.00 | EH14: 20.00 | EI14: -1,100.00 | EJ14: 90.00 | EK14: 1,100.00 | EL14: -1,100.00 | EM14: 90.00 | EN14: 550.00 | EO14: -550.00 | EP14: -495.00 | EQ14: 110.00 | ER14: 60.50 | ES14: -900.00 | ET14: =#REF! ->  | EU14: 495.00 | EV14: =#REF!*EB14 ->  | EW14: 0.00 | EZ14: Costo Marginal | FA14: =(3*FA3*FA20^(2)*(2*FA4*FA20))+(FA5) -> -9,599,999,990.0 | FB14: =(2*(FB4*FB20))+(FB5) ->  | FC14: 0.55 | FD14: 35,162.50 | FE14: 127.86 | FF14: 275.00 | FG14: 0.36 | FH14: 127.50 | FI14: 240.00 | FJ14: 250.00 | FK14: 112.50 | FL14: 275.00 | FM14: 112.50 | FN14: 137.50 | FO14: 71.50 | FP14: 185.00 | FQ14: 101.75 | FR14: 130.00 | FS14: 55.8
A15: Costo Marginal | B15: =(3*(B4*B37^2))+(2*B5*B37)+B6 -> 700.8 | D15: 0.60 | E15: 8,016,800.00 | F15: 1,366.67 | G15: 3,000.00 | H15: 138.89 | I15: 1,227.78 | J15: 1,869.00 | K15: 2,100.00 | L15: 600.00 | M15: 3,600.00 | N15: 600.00 | O15: 1,800.00 | P15: 958.99 | Q15: 1,100.42 | R15: 660.25 | S15: 1,598.32 | T15: 280.1 | W15: Costo Medio | X15: =X16/X20 -> 55.8 | Y15: =Y16/Y20 -> 55.8 | Z15: 0.60 | AA15: 42,100.00 | AB15: 140.33 | AC15: 300.00 | AD15: 0.33 | AE15: 140.00 | AF15: 240.00 | AG15: 250.00 | AH15: 100.00 | AI15: 300.00 | AJ15: 100.00 | AK15: 150.00 | AL15: 78.00 | AM15: 185.00 | AN15: 111.00 | AO15: 130.00 | AP15: 55.8 | AW15: Costo Medio | AX15: =AX16/AX20 -> 26.6 | AZ15: 0.60 | BA15: 8,720.00 | BB15: 29.07 | BC15: 300.00 | BD15: 0.07 | BE15: 29.00 | BF15: 38.00 | BG15: 300.00 | BH15: 100.00 | BI15: 300.00 | BJ15: 100.00 | BK15: 150.00 | BL15: 246.43 | BM15: 141.51 | BN15: 84.91 | BO15: 216.98 | BP15: 44.6 | BQ15: 130.19 | BR15: 26.79 | BS15: 410.71 | BW15: Costo Medio | BX15: =BX16/BX20 -> 100.2 | BZ15: 0.60 | CA15: 24,020.00 | CB15: 100.08 | CC15: 240.00 | CD15: 0.08 | CE15: 100.00 | CF15: 100.00 | CG15: 0.00 | CH15: 80.00 | CI15: 240.00 | CJ15: 80.00 | CK15: 120.00 | CL15: 120.00 | CM15: 150.00 | CN15: 90.00 | CO15: 100.00 | CP15: 100.0 | CQ15: 60.00 | CR15: 60.00 | CS15: 200.00 | DA15: Costo Marginal | DB15: =(2*(DB4*DB21))+(DB5) -> 20.0 | DD15: 0.60 | DE15: 8,000.00 | DF15: 26.67 | DG15: 300.00 | DH15: 6.67 | DI15: 20.00 | DJ15: 20.00 | DK15: 300.00 | DL15: 100.00 | DM15: 300.00 | DN15: 100.00 | DO15: 150.00 | DP15: 138.00 | DQ15: 135.00 | DR15: 81.00 | DS15: 230.00 | DT15: =#REF! ->  | DU15: 138.00 | DV15: =#REF!*DD15 ->  | DW15: 0.00 | DY15: Costo Marginal | DZ15: =(2*(DZ4*DZ21))+(DZ5) -> 20.0 | EB15: 0.60 | EC15: 26,000.01 | ED15: 21.67 | EE15: 1,200.00 | EF15: 1.67 | EG15: 20.00 | EH15: 20.00 | EI15: -1,200.00 | EJ15: 80.00 | EK15: 1,200.00 | EL15: -1,200.00 | EM15: 80.00 | EN15: 600.00 | EO15: -600.00 | EP15: -540.00 | EQ15: 110.00 | ER15: 66.00 | ES15: -900.00 | ET15: =#REF! ->  | EU15: 540.00 | EV15: =#REF!*EB15 ->  | EW15: 0.00 | EZ15: Costo Medio | FA15: =FA16/FA20 -> 798,010.0 | FB15: =FB16/FB20 ->  | FC15: 0.60 | FD15: 42,100.00 | FE15: 140.33 | FF15: 300.00 | FG15: 0.33 | FH15: 140.00 | FI15: 240.00 | FJ15: 250.00 | FK15: 100.00 | FL15: 300.00 | FM15: 100.00 | FN15: 150.00 | FO15: 78.00 | FP15: 185.00 | FQ15: 111.00 | FR15: 130.00 | FS15: 55.8
A16: Costo Medio | B16: =B17/B37 -> 280.1 | D16: 0.65 | E16: 10,690,700.00 | F16: 1,366.67 | G16: 3,000.00 | H16: 128.21 | I16: 1,238.46 | J16: 1,869.00 | K16: 2,100.00 | L16: 525.00 | M16: 3,900.00 | N16: 525.00 | O16: 1,950.00 | P16: 1,038.91 | Q16: 1,100.42 | R16: 715.27 | S16: 1,598.32 | T16: 280.1 | W16: Costo Total | X16: =X4*(X20^2)+X5*X20+X6 -> 7,250.0 | Y16: =Y4*(Y20^2)+Y5*Y20+Y6 -> 7,250.0 | Z16: 0.65 | AA16: 49,662.50 | AB16: 152.81 | AC16: 325.00 | AD16: 0.31 | AE16: 152.50 | AF16: 240.00 | AG16: 250.00 | AH16: 87.50 | AI16: 325.00 | AJ16: 87.50 | AK16: 162.50 | AL16: 84.50 | AM16: 185.00 | AN16: 120.25 | AO16: 130.00 | AP16: 55.8 | AW16: Costo Total | AX16: =AX4*(AX20^2)+AX5*AX20+AX6 -> 5,772.0 | AZ16: 0.65 | BA16: 9,688.75 | BB16: 29.81 | BC16: 325.00 | BD16: 0.06 | BE16: 29.75 | BF16: 39.50 | BG16: 325.00 | BH16: 87.50 | BI16: 325.00 | BJ16: 87.50 | BK16: 162.50 | BL16: 266.96 | BM16: 141.51 | BN16: 91.98 | BO16: 216.98 | BP16: 44.6 | BQ16: 141.04 | BR16: 29.02 | BS16: 410.71 | BW16: Costo Total | BX16: =BX4*(BX20^2)+BX5*BX20+BX6 -> 10,020.0 | BZ16: 0.65 | CA16: 26,020.00 | CB16: 100.08 | CC16: 260.00 | CD16: 0.08 | CE16: 100.00 | CF16: 100.00 | CG16: 0.00 | CH16: 70.00 | CI16: 260.00 | CJ16: 70.00 | CK16: 130.00 | CL16: 130.00 | CM16: 150.00 | CN16: 97.50 | CO16: 100.00 | CP16: 100.0 | CQ16: 65.00 | CR16: 65.00 | CS16: 200.00 | DA16: Costo Medio | DB16: =DB17/DB21 -> 28.7 | DD16: 0.65 | DE16: 8,500.00 | DF16: 26.15 | DG16: 325.00 | DH16: 6.15 | DI16: 20.00 | DJ16: 20.00 | DK16: 325.00 | DL16: 87.50 | DM16: 325.00 | DN16: 87.50 | DO16: 162.50 | DP16: 149.50 | DQ16: 135.00 | DR16: 87.75 | DS16: 230.00 | DT16: =#REF! ->  | DU16: 149.50 | DV16: =#REF!*DD16 ->  | DW16: 0.00 | DY16: Costo Medio | DZ16: =DZ17/DZ21 -> 22.2 | EB16: 0.65 | EC16: 28,000.02 | ED16: 21.54 | EE16: 1,300.00 | EF16: 1.54 | EG16: 20.00 | EH16: 20.00 | EI16: -1,300.00 | EJ16: 70.00 | EK16: 1,300.00 | EL16: -1,300.00 | EM16: 70.00 | EN16: 650.00 | EO16: -650.00 | EP16: -585.00 | EQ16: 110.00 | ER16: 71.50 | ES16: -900.00 | ET16: =#REF! ->  | EU16: 585.00 | EV16: =#REF!*EB16 ->  | EW16: 0.00 | EZ16: Costo Total | FA16: =FA3*(FA20^3)+FA4*(FA20^2)+FA5*FA20+FA6 -> 3,192,040,100.0 | FB16: =FB4*(FB20^2)+FB5*FB20+FB6 ->  | FC16: 0.65 | FD16: 49,662.50 | FE16: 152.81 | FF16: 325.00 | FG16: 0.31 | FH16: 152.50 | FI16: 240.00 | FJ16: 250.00 | FK16: 87.50 | FL16: 325.00 | FM16: 87.50 | FN16: 162.50 | FO16: 84.50 | FP16: 185.00 | FQ16: 120.25 | FR16: 130.00 | FS16: 55.8
A17: Costo Total | B17: =B4*(B37^3)+B5*(B37^2)+B6*B37+B7 -> 447,618.7 | D17: 0.70 | E17: 13,906,400.00 | F17: 1,366.67 | G17: 3,000.00 | H17: 119.05 | I17: 1,247.62 | J17: 1,869.00 | K17: 2,100.00 | L17: 450.00 | M17: 4,200.00 | N17: 450.00 | O17: 2,100.00 | P17: 1,118.82 | Q17: 1,100.42 | R17: 770.29 | S17: 1,598.32 | T17: 280.1 | W17: Ingreso Total | X17: =X12*X11 -> 24,050.0 | Y17: =Y12*Y11 -> 24,050.0 | Z17: 0.70 | AA17: 57,850.00 | AB17: 165.29 | AC17: 350.00 | AD17: 0.29 | AE17: 165.00 | AF17: 240.00 | AG17: 250.00 | AH17: 75.00 | AI17: 350.00 | AJ17: 75.00 | AK17: 175.00 | AL17: 91.00 | AM17: 185.00 | AN17: 129.50 | AO17: 130.00 | AP17: 55.8 | AW17: Ingreso Total | AX17: =AX12*AX11 -> 30,704.9 | AZ17: 0.70 | BA17: 10,695.00 | BB17: 30.56 | BC17: 350.00 | BD17: 0.06 | BE17: 30.50 | BF17: 41.00 | BG17: 350.00 | BH17: 75.00 | BI17: 350.00 | BJ17: 75.00 | BK17: 175.00 | BL17: 287.50 | BM17: 141.51 | BN17: 99.06 | BO17: 216.98 | BP17: 44.6 | BQ17: 151.89 | BR17: 31.25 | BS17: 410.71 | BW17: Ingreso Total | BX17: =BX12*BX11 -> 15,000.0 | BZ17: 0.70 | CA17: 28,020.00 | CB17: 100.07 | CC17: 280.00 | CD17: 0.07 | CE17: 100.00 | CF17: 100.00 | CG17: 0.00 | CH17: 60.00 | CI17: 280.00 | CJ17: 60.00 | CK17: 140.00 | CL17: 140.00 | CM17: 150.00 | CN17: 105.00 | CO17: 100.00 | CP17: 100.0 | CQ17: 70.00 | CR17: 70.00 | CS17: 200.00 | DA17: Costo Total | DB17: =DB4*(DB21^2)+DB5*DB21+DB6 -> 6,600.0 | DD17: 0.70 | DE17: 9,000.00 | DF17: 25.71 | DG17: 350.00 | DH17: 5.71 | DI17: 20.00 | DJ17: 20.00 | DK17: 350.00 | DL17: 75.00 | DM17: 350.00 | DN17: 75.00 | DO17: 175.00 | DP17: 161.00 | DQ17: 135.00 | DR17: 94.50 | DS17: 230.00 | DT17: =#REF! ->  | DU17: 161.00 | DV17: =#REF!*DD17 ->  | DW17: 0.00 | DY17: Costo Total | DZ17: =DZ4*(DZ21^2)+DZ5*DZ21+DZ6 -> 20,000.0 | EB17: 0.70 | EC17: 30,000.02 | ED17: 21.43 | EE17: 1,400.00 | EF17: 1.43 | EG17: 20.00 | EH17: 20.00 | EI17: -1,400.00 | EJ17: 60.00 | EK17: 1,400.00 | EL17: -1,400.00 | EM17: 60.00 | EN17: 700.00 | EO17: -700.00 | EP17: -630.00 | EQ17: 110.00 | ER17: 77.00 | ES17: -900.00 | ET17: =#REF! ->  | EU17: 630.00 | EV17: =#REF!*EB17 ->  | EW17: 0.00 | EZ17: Ingreso Total | FA17: =FA12*FA11 -> -7,000,000.0 | FB17: =FB12*FB11 ->  | FC17: 0.70 | FD17: 57,850.00 | FE17: 165.29 | FF17: 350.00 | FG17: 0.29 | FH17: 165.00 | FI17: 240.00 | FJ17: 250.00 | FK17: 75.00 | FL17: 350.00 | FM17: 75.00 | FN17: 175.00 | FO17: 91.00 | FP17: 185.00 | FQ17: 129.50 | FR17: 130.00 | FS17: 55.8
A18: Ingreso Total | B18: =B13*B12 -> 1,758,822.1 | D18: 0.75 | E18: 17,712,500.00 | F18: 1,366.67 | G18: 3,000.00 | H18: 111.11 | I18: 1,255.56 | J18: 1,869.00 | K18: 2,100.00 | L18: 375.00 | M18: 4,500.00 | N18: 375.00 | O18: 2,250.00 | P18: 1,198.74 | Q18: 1,100.42 | R18: 825.32 | S18: 1,598.32 | T18: 280.1 | W18: Beneficio | X18: =X17-X16 -> 16,800.0 | Y18: =Y17-Y16 -> 16,800.0 | Z18: 0.75 | AA18: 66,662.50 | AB18: 177.77 | AC18: 375.00 | AD18: 0.27 | AE18: 177.50 | AF18: 240.00 | AG18: 250.00 | AH18: 62.50 | AI18: 375.00 | AJ18: 62.50 | AK18: 187.50 | AL18: 97.50 | AM18: 185.00 | AN18: 138.75 | AO18: 130.00 | AP18: 55.8 | AW18: Beneficio | AX18: =AX17-AX16 -> 24,932.8 | AZ18: 0.75 | BA18: 11,738.75 | BB18: 31.30 | BC18: 375.00 | BD18: 0.05 | BE18: 31.25 | BF18: 42.50 | BG18: 375.00 | BH18: 62.50 | BI18: 375.00 | BJ18: 62.50 | BK18: 187.50 | BL18: 308.04 | BM18: 141.51 | BN18: 106.13 | BO18: 216.98 | BP18: 44.6 | BQ18: 162.74 | BR18: 33.48 | BS18: 410.71 | BW18: Beneficio | BX18: =BX17-BX16 -> 4,980.0 | BZ18: 0.75 | CA18: 30,020.00 | CB18: 100.07 | CC18: 300.00 | CD18: 0.07 | CE18: 100.00 | CF18: 100.00 | CG18: 0.00 | CH18: 50.00 | CI18: 300.00 | CJ18: 50.00 | CK18: 150.00 | CL18: 150.00 | CM18: 150.00 | CN18: 112.50 | CO18: 100.00 | CP18: 100.0 | CQ18: 75.00 | CR18: 75.00 | CS18: 200.00 | DA18: Ingreso Total | DB18: =DB11*DB10 -> 31,050.0 | DD18: 0.75 | DE18: 9,500.00 | DF18: 25.33 | DG18: 375.00 | DH18: 5.33 | DI18: 20.00 | DJ18: 20.00 | DK18: 375.00 | DL18: 62.50 | DM18: 375.00 | DN18: 62.50 | DO18: 187.50 | DP18: 172.50 | DQ18: 135.00 | DR18: 101.25 | DS18: 230.00 | DT18: =#REF! ->  | DU18: 172.50 | DV18: =#REF!*DD18 ->  | DW18: 0.00 | DY18: Ingreso Total | DZ18: =DZ11*DZ10 -> 99,000.0 | EB18: 0.75 | EC18: 32,000.02 | ED18: 21.33 | EE18: 1,500.00 | EF18: 1.33 | EG18: 20.00 | EH18: 20.00 | EI18: -1,500.00 | EJ18: 50.00 | EK18: 1,500.00 | EL18: -1,500.00 | EM18: 50.00 | EN18: 750.00 | EO18: -750.00 | EP18: -675.00 | EQ18: 110.00 | ER18: 82.50 | ES18: -900.00 | ET18: =#REF! ->  | EU18: 675.00 | EV18: =#REF!*EB18 ->  | EW18: 0.00 | EZ18: Beneficio | FA18: =FA17-FA16 -> -3,199,040,100.0 | FB18: =FB17-FB16 ->  | FC18: 0.75 | FD18: 66,662.50 | FE18: 177.77 | FF18: 375.00 | FG18: 0.27 | FH18: 177.50 | FI18: 240.00 | FJ18: 250.00 | FK18: 62.50 | FL18: 375.00 | FM18: 62.50 | FN18: 187.50 | FO18: 97.50 | FP18: 185.00 | FQ18: 138.75 | FR18: 130.00 | FS18: 55.8
A19: Beneficio | B19: =B18-B17 -> 1,311,203.4 | D19: 0.80 | E19: 22,157,600.00 | F19: 1,366.67 | G19: 3,000.00 | H19: 104.17 | I19: 1,262.50 | J19: 1,869.00 | K19: 2,100.00 | L19: 300.00 | M19: 4,800.00 | N19: 300.00 | O19: 2,400.00 | P19: 1,278.65 | Q19: 1,100.42 | R19: 880.34 | S19: 1,598.32 | T19: 280.1 | Z19: 0.80 | AA19: 76,100.00 | AB19: 190.25 | AC19: 400.00 | AD19: 0.25 | AE19: 190.00 | AF19: 240.00 | AG19: 250.00 | AH19: 50.00 | AI19: 400.00 | AJ19: 50.00 | AK19: 200.00 | AL19: 104.00 | AM19: 185.00 | AN19: 148.00 | AO19: 130.00 | AP19: 55.8 | AZ19: 0.80 | BA19: 12,820.00 | BB19: 32.05 | BC19: 400.00 | BD19: 0.05 | BE19: 32.00 | BF19: 44.00 | BG19: 400.00 | BH19: 50.00 | BI19: 400.00 | BJ19: 50.00 | BK19: 200.00 | BL19: 328.57 | BM19: 141.51 | BN19: 113.21 | BO19: 216.98 | BP19: 44.6 | BQ19: 173.58 | BR19: 35.71 | BS19: 410.71 | BZ19: 0.80 | CA19: 32,020.00 | CB19: 100.06 | CC19: 320.00 | CD19: 0.06 | CE19: 100.00 | CF19: 100.00 | CG19: 0.00 | CH19: 40.00 | CI19: 320.00 | CJ19: 40.00 | CK19: 160.00 | CL19: 160.00 | CM19: 150.00 | CN19: 120.00 | CO19: 100.00 | CP19: 100.0 | CQ19: 80.00 | CR19: 80.00 | CS19: 200.00 | DA19: Beneficio | DB19: =DB18-DB17 -> 24,450.0 | DD19: 0.80 | DE19: 10,000.00 | DF19: 25.00 | DG19: 400.00 | DH19: 5.00 | DI19: 20.00 | DJ19: 20.00 | DK19: 400.00 | DL19: 50.00 | DM19: 400.00 | DN19: 50.00 | DO19: 200.00 | DP19: 184.00 | DQ19: 135.00 | DR19: 108.00 | DS19: 230.00 | DT19: =#REF! ->  | DU19: 184.00 | DV19: =#REF!*DD19 ->  | DW19: 0.00 | DY19: Beneficio | DZ19: =DZ18-DZ17 -> 79,000.0 | EB19: 0.80 | EC19: 34,000.03 | ED19: 21.25 | EE19: 1,600.00 | EF19: 1.25 | EG19: 20.00 | EH19: 20.00 | EI19: -1,600.00 | EJ19: 40.00 | EK19: 1,600.00 | EL19: -1,600.00 | EM19: 40.00 | EN19: 800.00 | EO19: -800.00 | EP19: -720.00 | EQ19: 110.00 | ER19: 88.00 | ES19: -900.00 | ET19: =#REF! ->  | EU19: 720.00 | EV19: =#REF!*EB19 ->  | EW19: 0.00 | FC19: 0.80 | FD19: 76,100.00 | FE19: 190.25 | FF19: 400.00 | FG19: 0.25 | FH19: 190.00 | FI19: 240.00 | FJ19: 250.00 | FK19: 50.00 | FL19: 400.00 | FM19: 50.00 | FN19: 200.00 | FO19: 104.00 | FP19: 185.00 | FQ19: 148.00 | FR19: 130.00 | FS19: 55.8
A20: Elasticidad Precio | B20: =+B9*(B12/B13) -> -2.8 | D20: 0.85 | E20: 27,290,300.00 | F20: 1,366.67 | G20: 3,000.00 | H20: 98.04 | I20: 1,268.63 | J20: 1,869.00 | K20: 2,100.00 | L20: 225.00 | M20: 5,100.00 | N20: 225.00 | O20: 2,550.00 | P20: 1,358.57 | Q20: 1,100.42 | R20: 935.36 | S20: 1,598.32 | T20: 280.1 | W20: y equilibrio | X20: =(X7-(-X8*X5))/(2+(2*X4*-X8)) -> 130.0 | Y20: =(Y7-(-Y8*Y5))/(2+(2*Y4*-Y8)) -> 130.0 | Z20: 0.85 | AA20: 86,162.50 | AB20: 202.74 | AC20: 425.00 | AD20: 0.24 | AE20: 202.50 | AF20: 240.00 | AG20: 250.00 | AH20: 37.50 | AI20: 425.00 | AJ20: 37.50 | AK20: 212.50 | AL20: 110.50 | AM20: 185.00 | AN20: 157.25 | AO20: 130.00 | AP20: 55.8 | AW20: y equilibrio | AX20: =(AX7-(-AX8*AX5))/(2+(2*AX4*-AX8)) -> 217.0 | AZ20: 0.85 | BA20: 13,938.75 | BB20: 32.80 | BC20: 425.00 | BD20: 0.05 | BE20: 32.75 | BF20: 45.50 | BG20: 425.00 | BH20: 37.50 | BI20: 425.00 | BJ20: 37.50 | BK20: 212.50 | BL20: 349.11 | BM20: 141.51 | BN20: 120.28 | BO20: 216.98 | BP20: 44.6 | BQ20: 184.43 | BR20: 37.95 | BS20: 410.71 | BW20: y equilibrio | BX20: =(BX7-(-BX8*BX5))/(2+(2*BX4*-BX8)) -> 100.0 | BZ20: 0.85 | CA20: 34,020.00 | CB20: 100.06 | CC20: 340.00 | CD20: 0.06 | CE20: 100.00 | CF20: 100.00 | CG20: 0.00 | CH20: 30.00 | CI20: 340.00 | CJ20: 30.00 | CK20: 170.00 | CL20: 170.00 | CM20: 150.00 | CN20: 127.50 | CO20: 100.00 | CP20: 100.0 | CQ20: 85.00 | CR20: 85.00 | CS20: 200.00 | DD20: 0.85 | DE20: 10,500.00 | DF20: 24.71 | DG20: 425.00 | DH20: 4.71 | DI20: 20.00 | DJ20: 20.00 | DK20: 425.00 | DL20: 37.50 | DM20: 425.00 | DN20: 37.50 | DO20: 212.50 | DP20: 195.50 | DQ20: 135.00 | DR20: 114.75 | DS20: 230.00 | DT20: =#REF! ->  | DU20: 195.50 | DV20: =#REF!*DD20 ->  | DW20: 0.00 | EB20: 0.85 | EC20: 36,000.03 | ED20: 21.18 | EE20: 1,700.00 | EF20: 1.18 | EG20: 20.00 | EH20: 20.00 | EI20: -1,700.00 | EJ20: 30.00 | EK20: 1,700.00 | EL20: -1,700.00 | EM20: 30.00 | EN20: 850.00 | EO20: -850.00 | EP20: -765.00 | EQ20: 110.00 | ER20: 93.50 | ES20: -900.00 | ET20: =#REF! ->  | EU20: 765.00 | EV20: =#REF!*EB20 ->  | EW20: 0.00 | EZ20: y equilibrio | FA20: 4000.0 | FB20: =(FB7-(-FB8*FB5))/(2+(2*FB4*-FB8)) ->  | FC20: 0.85 | FD20: 86,162.50 | FE20: 202.74 | FF20: 425.00 | FG20: 0.24 | FH20: 202.50 | FI20: 240.00 | FJ20: 250.00 | FK20: 37.50 | FL20: 425.00 | FM20: 37.50 | FN20: 212.50 | FO20: 110.50 | FP20: 185.00 | FQ20: 157.25 | FR20: 130.00 | FS20: 55.8
D21: 0.90 | E21: 33,159,200.00 | F21: 1,366.67 | G21: 3,000.00 | H21: 92.59 | I21: 1,274.07 | J21: 1,869.00 | K21: 2,100.00 | L21: 150.00 | M21: 5,400.00 | N21: 150.00 | O21: 2,700.00 | P21: 1,438.49 | Q21: 1,100.42 | R21: 990.38 | S21: 1,598.32 | T21: 280.1 | Z21: 0.90 | AA21: 96,850.00 | AB21: 215.22 | AC21: 450.00 | AD21: 0.22 | AE21: 215.00 | AF21: 240.00 | AG21: 250.00 | AH21: 25.00 | AI21: 450.00 | AJ21: 25.00 | AK21: 225.00 | AL21: 117.00 | AM21: 185.00 | AN21: 166.50 | AO21: 130.00 | AP21: 55.8 | AZ21: 0.90 | BA21: 15,095.00 | BB21: 33.54 | BC21: 450.00 | BD21: 0.04 | BE21: 33.50 | BF21: 47.00 | BG21: 450.00 | BH21: 25.00 | BI21: 450.00 | BJ21: 25.00 | BK21: 225.00 | BL21: 369.64 | BM21: 141.51 | BN21: 127.36 | BO21: 216.98 | BP21: 44.6 | BQ21: 195.28 | BR21: 40.18 | BS21: 410.71 | BZ21: 0.90 | CA21: 36,020.00 | CB21: 100.06 | CC21: 360.00 | CD21: 0.06 | CE21: 100.00 | CF21: 100.00 | CG21: 0.00 | CH21: 20.00 | CI21: 360.00 | CJ21: 20.00 | CK21: 180.00 | CL21: 180.00 | CM21: 150.00 | CN21: 135.00 | CO21: 100.00 | CP21: 100.0 | CQ21: 90.00 | CR21: 90.00 | CS21: 200.00 | DA21: y equilibrio | DB21: =(DB7-(-DB8*DB5))/(2+(2*DB4*-DB8)) -> 230.0 | DD21: 0.90 | DE21: 11,000.00 | DF21: 24.44 | DG21: 450.00 | DH21: 4.44 | DI21: 20.00 | DJ21: 20.00 | DK21: 450.00 | DL21: 25.00 | DM21: 450.00 | DN21: 25.00 | DO21: 225.00 | DP21: 207.00 | DQ21: 135.00 | DR21: 121.50 | DS21: 230.00 | DT21: =#REF! ->  | DU21: 207.00 | DV21: =#REF!*DD21 ->  | DW21: 0.00 | DY21: y equilibrio | DZ21: =(DZ7-(-DZ8*DZ5))/(2+(2*DZ4*-DZ8)) -> 900.0 | EB21: 0.90 | EC21: 38,000.03 | ED21: 21.11 | EE21: 1,800.00 | EF21: 1.11 | EG21: 20.00 | EH21: 20.00 | EI21: -1,800.00 | EJ21: 20.00 | EK21: 1,800.00 | EL21: -1,800.00 | EM21: 20.00 | EN21: 900.00 | EO21: -900.00 | EP21: -810.00 | EQ21: 110.00 | ER21: 99.00 | ES21: -900.00 | ET21: =#REF! ->  | EU21: 810.00 | EV21: =#REF!*EB21 ->  | EW21: 0.00 | FC21: 0.90 | FD21: 96,850.00 | FE21: 215.22 | FF21: 450.00 | FG21: 0.22 | FH21: 215.00 | FI21: 240.00 | FJ21: 250.00 | FK21: 25.00 | FL21: 450.00 | FM21: 25.00 | FN21: 225.00 | FO21: 117.00 | FP21: 185.00 | FQ21: 166.50 | FR21: 130.00 | FS21: 55.8
A22: Inserte un valor y particular | B22: 572.0 | D22: 0.95 | E22: 39,812,900.00 | F22: 1,366.67 | G22: 3,000.00 | H22: 87.72 | I22: 1,278.95 | J22: 1,869.00 | K22: 2,100.00 | L22: 75.00 | M22: 5,700.00 | N22: 75.00 | O22: 2,850.00 | P22: 1,518.40 | Q22: 1,100.42 | R22: 1,045.40 | S22: 1,598.32 | T22: 280.1 | W22: Inserte un valor y particular | X22: 572.0 | Y22: =X22 -> 572.0 | Z22: 0.95 | AA22: 108,162.50 | AB22: 227.71 | AC22: 475.00 | AD22: 0.21 | AE22: 227.50 | AF22: 240.00 | AG22: 250.00 | AH22: 12.50 | AI22: 475.00 | AJ22: 12.50 | AK22: 237.50 | AL22: 123.50 | AM22: 185.00 | AN22: 175.75 | AO22: 130.00 | AP22: 55.8 | AW22: Inserte un valor y particular | AX22: 572.0 | AZ22: 0.95 | BA22: 16,288.75 | BB22: 34.29 | BC22: 475.00 | BD22: 0.04 | BE22: 34.25 | BF22: 48.50 | BG22: 475.00 | BH22: 12.50 | BI22: 475.00 | BJ22: 12.50 | BK22: 237.50 | BL22: 390.18 | BM22: 141.51 | BN22: 134.43 | BO22: 216.98 | BP22: 44.6 | BQ22: 206.13 | BR22: 42.41 | BS22: 410.71 | BW22: Inserte un valor y particular | BX22: 572.0 | BZ22: 0.95 | CA22: 38,020.00 | CB22: 100.05 | CC22: 380.00 | CD22: 0.05 | CE22: 100.00 | CF22: 100.00 | CG22: 0.00 | CH22: 10.00 | CI22: 380.00 | CJ22: 10.00 | CK22: 190.00 | CL22: 190.00 | CM22: 150.00 | CN22: 142.50 | CO22: 100.00 | CP22: 100.0 | CQ22: 95.00 | CR22: 95.00 | CS22: 200.00 | DD22: 0.95 | DE22: 11,500.00 | DF22: 24.21 | DG22: 475.00 | DH22: 4.21 | DI22: 20.00 | DJ22: 20.00 | DK22: 475.00 | DL22: 12.50 | DM22: 475.00 | DN22: 12.50 | DO22: 237.50 | DP22: 218.50 | DQ22: 135.00 | DR22: 128.25 | DS22: 230.00 | DT22: =#REF! ->  | DU22: 218.50 | DV22: =#REF!*DD22 ->  | DW22: 0.00 | EB22: 0.95 | EC22: 40,000.04 | ED22: 21.05 | EE22: 1,900.00 | EF22: 1.05 | EG22: 20.00 | EH22: 20.00 | EI22: -1,900.00 | EJ22: 10.00 | EK22: 1,900.00 | EL22: -1,900.00 | EM22: 10.00 | EN22: 950.00 | EO22: -950.00 | EP22: -855.00 | EQ22: 110.00 | ER22: 104.50 | ES22: -900.00 | ET22: =#REF! ->  | EU22: 855.00 | EV22: =#REF!*EB22 ->  | EW22: 0.00 | EZ22: Inserte un valor y particular | FA22: 572.0 | FB22: =FA22 -> 572.0 | FC22: 0.95 | FD22: 108,162.50 | FE22: 227.71 | FF22: 475.00 | FG22: 0.21 | FH22: 227.50 | FI22: 240.00 | FJ22: 250.00 | FK22: 12.50 | FL22: 475.00 | FM22: 12.50 | FN22: 237.50 | FO22: 123.50 | FP22: 185.00 | FQ22: 175.75 | FR22: 130.00 | FS22: 55.8
D23: 1.00 | E23: 47,300,000.00 | F23: 1,366.67 | G23: 3,000.00 | H23: 83.33 | I23: 1,283.33 | J23: 1,869.00 | K23: 2,100.00 | L23: 0.00 | M23: 6,000.00 | N23: 0.00 | O23: 3,000.00 | P23: 1,598.32 | Q23: 1,100.42 | R23: 1,100.42 | S23: 1,598.32 | T23: 280.1 | Z23: 1.00 | AA23: 120,100.00 | AB23: 240.20 | AC23: 500.00 | AD23: 0.20 | AE23: 240.00 | AF23: 240.00 | AG23: 250.00 | AH23: 0.00 | AI23: 500.00 | AJ23: 0.00 | AK23: 250.00 | AL23: 130.00 | AM23: 185.00 | AN23: 185.00 | AO23: 130.00 | AP23: 55.8 | AZ23: 1.00 | BA23: =$AX$6+($AX$5*BI23)+($AX$4*(BI23^2)) -> 17,520.00 | BB23: 35.04 | BC23: 500.00 | BD23: 0.04 | BE23: 35.00 | BF23: 50.00 | BG23: 500.00 | BH23: 0.00 | BI23: 500.00 | BJ23: 0.00 | BK23: 250.00 | BL23: 410.71 | BM23: 141.51 | BN23: 141.51 | BO23: 216.98 | BP23: 44.6 | BQ23: 216.98 | BR23: =$AX$33*AZ23 -> 44.64 | BS23: 410.71 | BZ23: 1.00 | CA23: 40,020.00 | CB23: 100.05 | CC23: 400.00 | CD23: 0.05 | CE23: 100.00 | CF23: 100.00 | CG23: 0.00 | CH23: 0.00 | CI23: 400.00 | CJ23: 0.00 | CK23: 200.00 | CL23: 200.00 | CM23: 150.00 | CN23: 150.00 | CO23: 100.00 | CP23: 100.0 | CQ23: 100.00 | CR23: 100.00 | CS23: 200.00 | DA23: Inserte un valor y particular | DB23: 572.0 | DD23: 1.00 | DE23: 12,000.00 | DF23: 24.00 | DG23: 500.00 | DH23: 4.00 | DI23: 20.00 | DJ23: 20.00 | DK23: 500.00 | DL23: 0.00 | DM23: 500.00 | DN23: 0.00 | DO23: 250.00 | DP23: 230.00 | DQ23: 135.00 | DR23: 135.00 | DS23: 230.00 | DT23: =#REF! ->  | DU23: 230.00 | DV23: =#REF!*DD23 ->  | DW23: 0.00 | DY23: Inserte un valor y particular | DZ23: 572.0 | EB23: 1.00 | EC23: 42,000.04 | ED23: 21.00 | EE23: 2,000.00 | EF23: 1.00 | EG23: 20.00 | EH23: 20.00 | EI23: -2,000.00 | EJ23: 0.00 | EK23: 2,000.00 | EL23: -2,000.00 | EM23: 0.00 | EN23: 1,000.00 | EO23: -1,000.00 | EP23: -900.00 | EQ23: 110.00 | ER23: 110.00 | ES23: -900.00 | ET23: =#REF! ->  | EU23: 900.00 | EV23: =#REF!*EB23 ->  | EW23: 0.00 | FC23: 1.00 | FD23: 120,100.00 | FE23: 240.20 | FF23: 500.00 | FG23: 0.20 | FH23: 240.00 | FI23: 240.00 | FJ23: 250.00 | FK23: 0.00 | FL23: 500.00 | FM23: 0.00 | FN23: 250.00 | FO23: 130.00 | FP23: 185.00 | FQ23: 185.00 | FR23: 130.00 | FS23: 55.8
W24: Costo Total | X24: =X4*(X22^(2))+X5*X22+X6 -> 157972.0 | Y24: =Y4*(Y22^(2))+Y5*Y22+Y6 -> 157972.0 | AW24: Costo Total | AX24: =AX4*(AX22^(2))+AX5*AX22+AX6 -> 21275.5 | BW24: Costo Total | BX24: =BX4*(BX22^(2))+BX5*BX22+BX6 -> 57220.0 | EZ24: Costo Total | FA24: =FA4*(FA22^(2))+FA5*FA22+FA6 -> -157772.0 | FB24: =FB4*(FB22^(2))+FB5*FB22+FB6 -> -157772.0
A25: Costo Total | B25: =B4*(B22^(3))+B5*(B22^(2))+B6*B22+B7 -> 392552.8 | W25: Costo Fijo | X25: =X6 -> 100.0 | Y25: =Y6 -> 100.0 | AW25: Costo Fijo | AX25: =AX6 -> 20.0 | BW25: Costo Fijo | BX25: =BX6 -> 20.0 | DA25: Costo Total | DB25: =DB4*(DB23^(2))+DB5*DB23+DB6 -> 13440.0 | DY25: Costo Total | DZ25: =DZ4*(DZ23^(2))+DZ5*DZ23+DZ6 -> 13440.0 | EZ25: Costo Fijo | FA25: =FA6 -> 100.0 | FB25: =FB6 -> 100.0 | FD25: =FA13-FA14 -> 9,599,999,990.00
A26: Costo Fijo | B26: =B7 -> 500000.0 | W26: Costo Variable | X26: =X24-X25 -> 157872.0 | Y26: =Y24-Y25 -> 157872.0 | AW26: Costo Variable | AX26: =AX24-AX25 -> 21255.5 | BW26: Costo Variable | BX26: =BX24-BX25 -> 57200.0 | DA26: Costo Fijo | DB26: =DB6 -> 2000.0 | DY26: Costo Fijo | DZ26: =DZ6 -> 2000.0 | EZ26: Costo Variable | FA26: =FA24-FA25 -> -157872.0 | FB26: =FB24-FB25 -> -157872.0 | FD26: =(1+FA8)*FA7*FA20^(FA8) -> -0.00
A27: Costo Variable | B27: =B25-B26 -> -107447.2 | W27: Costo Medio | X27: =X24/X22 -> 276.2 | Y27: =Y24/Y22 -> 276.2 | AW27: Costo Medio | AX27: =AX24/AX22 -> 37.2 | BW27: Costo Medio | BX27: =BX24/BX22 -> 100.0 | DA27: Costo Variable | DB27: =DB25-DB26 -> 11440.0 | DY27: Costo Variable | DZ27: =DZ25-DZ26 -> 11440.0 | EZ27: Costo Medio | FA27: =FA24/FA22 -> -275.8 | FB27: =FB24/FB22 -> -275.8
A28: Costo Medio | B28: =B25/B22 -> 686.3 | W28: Costo Marginal | X28: =(2*X4*X22)+X5 -> 562.0 | Y28: =(2*Y4*Y22)+Y5 -> 562.0 | AW28: Costo Marginal | AX28: =(2*AX4*AX22)+AX5 -> 54.3 | BW28: Costo Marginal | BX28: =(2*BX4*BX22)+BX5 -> 100.0 | DA28: Costo Medio | DB28: =DB25/DB23 -> 23.5 | DY28: Costo Medio | DZ28: =DZ25/DZ23 -> 23.5 | EZ28: Costo Marginal | FA28: =(2*FA4*FA22)+FA5 -> -562.0 | FB28: =(2*FB4*FB22)+FB5 -> -562.0
A29: Costo Marginal | B29: =(3*B4*(B22^(2)))+(2*B5*B22)+B6 -> -277.5 | W29: Costo Fijo Medio | X29: =X25/X22 -> 0.2 | Y29: =Y25/Y22 -> 0.2 | AW29: Costo Fijo Medio | AX29: =AX25/AX22 -> 0.0 | BW29: Costo Fijo Medio | BX29: =BX25/BX22 -> 0.0 | DA29: Costo Marginal | DB29: =(2*DB4*DB23)+DB5 -> 20.0 | DY29: Costo Marginal | DZ29: =(2*DZ4*DZ23)+DZ5 -> 20.0 | EZ29: Costo Fijo Medio | FA29: =FA25/FA22 -> 0.2 | FB29: =FB25/FB22 -> 0.2
A30: Costo Fijo Medio | B30: =B26/B22 -> 874.1 | W30: Costo Variable Medio | X30: =X26/X22 -> 276.0 | Y30: =Y26/Y22 -> 276.0 | AW30: Costo Variable Medio | AX30: =AX26/AX22 -> 37.2 | BW30: Costo Variable Medio | BX30: =BX26/BX22 -> 100.0 | DA30: Costo Fijo Medio | DB30: =DB26/DB23 -> 3.5 | DY30: Costo Fijo Medio | DZ30: =DZ26/DZ23 -> 3.5 | EZ30: Costo Variable Medio | FA30: =FA26/FA22 -> -276.0 | FB30: =FB26/FB22 -> -276.0
A31: Costo Variable Medio | B31: =B27/B22 -> -187.8 | DA31: Costo Variable Medio | DB31: =DB27/DB23 -> 20.0 | DY31: Costo Variable Medio | DZ31: =DZ27/DZ23 -> 20.0
AW33: precio competitivo | AX33: =((AX7/AX8)*-1)+((1/AX8)*AX34) -> 44.6 | BW33: precio competitivo | BX33: =((BX7/BX8)*-1)+((1/BX8)*BX34) -> 100.0 | BZ33: cantidad competitiva | CA33: =BX34 -> 200.00 | DA33: CON DISCRIMINACIÓN DE PRECIOS | DY33: CON DISCRIMINACIÓN DE PRECIOS
AW34: cantidad competitiva | AX34: =(AX7-(-AX8*AX5))/(1+(2*AX4*-AX8)) -> 410.71 | BW34: cantidad competitiva | BX34: =(BX7-(-BX8*BX5))/(1+(2*BX4*-BX8)) -> 200.00 | BZ34: numero de bloques | CA34: 5 | DA34: Excedente neto del consumidor | DB34: =((DB9-DB10)*(DB11))/2 -> 13,225.0 | DY34: Excedente neto del consumidor | DZ34: =((DZ9-DZ10)*(DZ11))/2 -> 40,500.0
A35: y1 equilibrio | B35: =((-1*(2*B5-2/B9))+((((2*B5-2/B9)^2))-((12*B4*(B6+B8/B9))))^0.5)/(6*B4) -> 1598.3 | AW35: SIN DISCRIMINACIÓN DE PRECIOS | BW35: SIN DISCRIMINACIÓN DE PRECIOS | BZ35: cantidad por bloque | CA35: =CA33/CA34 -> 40
A36: y2 equilibrio | B36: =((-1*(2*B5-2/B9))-((((2*B5-2/B9)^2))-((12*B4*(B6+B8/B9))))^0.5)/(6*B4) -> -1042.8 | AW36: Excedente neto del consumidor | AX36: =((AX9-AX11)*(AX12-0))/2 -> 11,770.2 | BW36: Excedente neto del consumidor | BX36: =((BX9-BX11)*(BX12-0))/2 -> 2,500.0 | CD36: cantidades | CE36: precios
A37: y equilibrio | B37: =IF(B35>0,B35,B36) -> 1598.3 | AW37: Perdida irrecuperable de eficiencia | AX37: =((AX11-AX13)*(AX34-AX12))/2 -> 10,509.1 | BW37: Perdida irrecuperable de eficiencia | BX37: =((BX11-BX13)*(BX34-BX12))/2 -> 2,500.0 | BZ37: Q0 | CA37: =IF(CD37>$CA$33,0,CD37) -> 0 | CB37: P0 | CC37: =(($BX$7/$BX$8)*-1)+((1/$BX$8)*CA37) -> 200 | CD37: 0 | CE37: =(($BX$7/$BX$8)*-1)+((1/$BX$8)*CD37) -> 200
BZ38: Q1 | CA38: 40 | CB38: P1 | CC38: 180 | CD38: =CD37+$CA$35 -> 40 | CE38: 180
AW39: CON DISCRIMINACIÓN DE PRECIOS | BW39: CON DISCRIMINACIÓN DE PRECIOS | BZ39: Q2 | CA39: 80 | CB39: P2 | CC39: 160 | CD39: =CD38+$CA$35 -> 80 | CE39: 160
AW40: Excedente neto del consumidor | AX40: =((AX9-AX33)*(AX34-0))/2-(((AX9-AX33)*(AX34-0))/2) -> 0.0 | BW40: Excedente neto del consumidor | BX40: =SUM(CA44:CA48) -> 2,000.0 | BZ40: Q3 | CA40: 120 | CB40: P3 | CC40: 140 | CD40: =CD39+$CA$35 -> 120 | CE40: 140
AW41: Perdida irrecuperable de eficiencia | AX41: 0.0 | BW41: Perdida irrecuperable de eficiencia | BX41: 0.0 | BZ41: Q4 | CA41: 160 | CB41: P4 | CC41: 120 | CD41: =CD40+$CA$35 -> 160 | CE41: 120
BZ42: Q5 | CA42: 200 | CB42: P5 | CC42: 100 | CD42: =CD41+$CA$35 -> 200 | CE42: 100
BZ44: EX1 | CA44: =((CC37-CC38)*(CA38-CA37))/2 -> 400
BZ45: EX2 | CA45: =((CC38-CC39)*(CA39-CA38))/2 -> 400
BZ46: EX3 | CA46: =((CC39-CC40)*(CA40-CA39))/2 -> 400
BZ47: EX4 | CA47: =((CC40-CC41)*(CA41-CA40))/2 -> 400
BZ48: EX5 | CA48: =((CC41-CC42)*(CA42-CA41))/2 -> 400
A50: MONOPOLIO NATURAL
M51: Demanda | O51: Ingreso Marginal | Q51: M0nopolio | V51: Mercados competitivos | Z51: Mnopolio natural | CF51: BLOQUE 1 | CJ51: BLOQUE 2 | CN51: BLOQUE 3 | CR51: BLOQUE 4 | CV51: BLOQUE 5
A52: FUNCIÒN DE COSTOS | E52: Ponderador | F52: COSTO TOTAL | G52: COSTO MEDIO | I52: COSTO FIJO MEDIO | J52: COSTO VARIABLE MEDIO | K52: COSTO MARGINAL | M52: P | N52: Y | O52: P | P52: Y | Q52: LineP(x) | S52: LineP(y) | U52: LineCU | V52: LineP(x) | X52: LineP(y) | Z52: LineP(x) | AB52: LineP(y) | CF52: LineP(x)precio | CH52: LineP(y) | CJ52: LineP(x)precio | CL52: LineP(y) | CN52: LineP(x)precio | CP52: LineP(y) | CR52: LineP(x)precio | CT52: LineP(y) | CV52: LineP(x)precio | CX52: LineP(y)
B53: monopolio | C53: competencia | D53: monopolio natural | E53: 0.00 | F53: =$B$57+($B$56*N53)+($B$55*(N53^2))+($B$54*(N53^3)) -> 2,000,000.00 | K53: =IF((3*$B$54*(N53^2))+(2*$B$55*(N53^1))+($B$56)<($B$58/$B$59*-1.7),(3*$B$54*(N53^2))+(2*$B$55*(N53^1))+($B$56),K52) -> 0.00 | M53: =(($B$58/$B$59)*-1)+((1/$B$59)*N53) -> 1,600.00 | N53: =$B$58*E53 -> 0.00 | O53: =M53 -> 1,600.00 | P53: =N53/2 -> 0.00 | Q53: =$B$63*E53 -> 0.00 | R53: =$B$62 -> 841.43 | S53: =$B$62*E53 -> 0.00 | T53: =$B$63 -> 3,034.30 | U53: =$B$66 -> 686.7 | V53: =$C$63*E53 -> 0.00 | W53: =$C$62 -> 258.95 | X53: =$C$62*E53 -> 0.00 | Y53: =$C$63 -> 5,364.20 | Z53: =$D$63*E53 -> 0.00 | AA53: =$D$62 -> 518.43 | AB53: =$D$62*E53 -> 0.00 | AC53: =$D$63 -> 4,326.27 | CF53: =$CA$38*$BZ3 -> 0.00 | CG53: =$CC$38 -> 180.00 | CH53: =$CC$38*$BZ3 -> 0.00 | CI53: =$CA$38 -> 40.00 | CJ53: =$CA$39*$BZ3 -> 0.00 | CK53: =$CC$39 -> 160.00 | CL53: =$CC$39*$BZ3 -> 0.00 | CM53: =$CA$39 -> 80.00 | CN53: =$CA$40*$BZ3 -> 0.00 | CO53: =$CC$40 -> 140.00 | CP53: =$CC$40*$BZ3 -> 0.00 | CQ53: =$CA$40 -> 120.00 | CR53: =$CA$41*$BZ3 -> 0.00 | CS53: =$CC$41 -> 120.00 | CT53: =$CC$41*$BZ3 -> 0.00 | CU53: =$CA$41 -> 160.00 | CV53: =$CA$42*$BZ3 -> 0.00 | CW53: =$CC$42 -> 100.00 | CX53: =$CC$42*$BZ3 -> 0.00 | CY53: =$CA$42 -> 200.00
A54: a | B54: =Mono_natural!C6 -> 0.0000030 | C54: =B54 -> 0.0 | D54: =C54 -> 0.0 | E54: 0.05 | F54: =$B$57+($B$56*N54)+($B$55*(N54^2))+($B$54*(N54^3)) -> 2,000,098.10 | G54: =IF(F54/N54>$B$60,G55,F54/N54) -> 1,567.41 | H54: =IF(G55=G54,H55,N54) -> 1,280.00 | I54: =$B$57/N54 -> 6,250.00 | J54: =$B$54*N54^2+$B$55*N54+B56 -> 0.31 | K54: =IF((3*$B$54*(N54^2))+(2*$B$55*(N54^1))+($B$56)<($B$58/$B$59*-1.7),(3*$B$54*(N54^2))+(2*$B$55*(N54^1))+($B$56),K53) -> 0.92 | L54: =IF(K54=K53,L53,N54) -> 320.00 | M54: 1,520.00 | N54: =$B$58*E54 -> 320.00 | O54: =M54 -> 1,520.00 | P54: =N54/2 -> 160.00 | Q54: =$B$63*E54 -> 151.71 | R54: =$B$62 -> 841.43 | S54: =$B$62*E54 -> 42.07 | T54: =$B$63 -> 3,034.30 | U54: =$B$66 -> 686.7 | V54: =$C$63*E54 -> 268.21 | W54: =$C$62 -> 258.95 | X54: =$C$62*E54 -> 12.95 | Y54: =$C$63 -> 5,364.20 | Z54: =$D$63*E54 -> 216.31 | AA54: =$D$62 -> 518.43 | AB54: =$D$62*E54 -> 25.92 | AC54: =$D$63 -> 4,326.27 | CF54: =$CA$38*$BZ4 -> 2.00 | CG54: =$CC$38 -> 180.00 | CH54: =$CC$38*$BZ4 -> 9.00 | CI54: =$CA$38 -> 40.00 | CJ54: =$CA$39*$BZ4 -> 4.00 | CK54: =$CC$39 -> 160.00 | CL54: =$CC$39*$BZ4 -> 8.00 | CM54: =$CA$39 -> 80.00 | CN54: =$CA$40*$BZ4 -> 6.00 | CO54: =$CC$40 -> 140.00 | CP54: =$CC$40*$BZ4 -> 7.00 | CQ54: =$CA$40 -> 120.00 | CR54: =$CA$41*$BZ4 -> 8.00 | CS54: =$CC$41 -> 120.00 | CT54: =$CC$41*$BZ4 -> 6.00 | CU54: =$CA$41 -> 160.00 | CV54: =$CA$42*$BZ4 -> 10.00 | CW54: =$CC$42 -> 100.00 | CX54: =$CC$42*$BZ4 -> 5.00 | CY54: =$CA$42 -> 200.00
A55: b | B55: =Mono_natural!C7 -> -0.0000020 | C55: =B55 -> -0.0 | D55: -0.0 | E55: 0.10 | F55: 2,000,785.61 | G55: 1,567.41 | H55: 1,280.00 | I55: =$B$57/N55 -> 3,125.00 | J55: =$B$54*N55^2+$B$55*N55+B57 -> 2,000,001.23 | K55: 3.68 | L55: =IF(K55=K54,L54,N55) -> 640.00 | M55: 1,440.00 | N55: 640.00 | O55: 1,440.00 | P55: 320.00 | Q55: 303.43 | R55: 841.43 | S55: 84.14 | T55: 3,034.30 | U55: 686.7 | V55: 536.42 | W55: 258.95 | X55: 25.90 | Y55: 5,364.20 | Z55: 432.63 | AA55: 518.43 | AB55: 51.84 | AC55: 4,326.27 | CF55: 4.00 | CG55: 180.00 | CH55: 18.00 | CI55: 40.00 | CJ55: 8.00 | CK55: 160.00 | CL55: 16.00 | CM55: 80.00 | CN55: 12.00 | CO55: 140.00 | CP55: 14.00 | CQ55: 120.00 | CR55: 16.00 | CS55: 120.00 | CT55: 12.00 | CU55: 160.00 | CV55: 20.00 | CW55: 100.00 | CX55: 10.00 | CY55: 200.00
A56: c | B56: =Mono_natural!C8 -> 0.0000001 | C56: 0.0 | D56: 0.0 | E56: 0.15 | F56: 2,002,652.36 | G56: 1,567.41 | H56: 1,280.00 | I56: 2,083.33 | J56: 6,402.76 | K56: 8.29 | L56: 960.00 | M56: 1,360.00 | N56: 960.00 | O56: 1,360.00 | P56: 480.00 | Q56: 455.14 | R56: 841.43 | S56: 126.21 | T56: 3,034.30 | U56: 686.7 | V56: 804.63 | W56: 258.95 | X56: 38.84 | Y56: 5,364.20 | Z56: 648.94 | AA56: 518.43 | AB56: 77.77 | AC56: 4,326.27 | CF56: 6.00 | CG56: 180.00 | CH56: 27.00 | CI56: 40.00 | CJ56: 12.00 | CK56: 160.00 | CL56: 24.00 | CM56: 80.00 | CN56: 18.00 | CO56: 140.00 | CP56: 21.00 | CQ56: 120.00 | CR56: 24.00 | CS56: 120.00 | CT56: 18.00 | CU56: 160.00 | CV56: 30.00 | CW56: 100.00 | CX56: 15.00 | CY56: 200.00
A57: d | B57: =Mono_natural!C9 -> 2000000.0 | C57: 2000000.0 | D57: 2000000.0 | E57: 0.20 | F57: 2,006,288.18 | G57: =IF(F57/N57>$B$60,G58,F57/N57) -> 1,567.41 | H57: 1,280.00 | I57: 1,562.50 | J57: 0.91 | K57: 14.74 | L57: 1,280.00 | M57: 1,280.00 | N57: 1,280.00 | O57: 1,280.00 | P57: 640.00 | Q57: 606.86 | R57: 841.43 | S57: 168.29 | T57: 3,034.30 | U57: 686.7 | V57: 1,072.84 | W57: 258.95 | X57: 51.79 | Y57: 5,364.20 | Z57: 865.25 | AA57: 518.43 | AB57: 103.69 | AC57: 4,326.27 | CF57: 8.00 | CG57: 180.00 | CH57: 36.00 | CI57: 40.00 | CJ57: 16.00 | CK57: 160.00 | CL57: 32.00 | CM57: 80.00 | CN57: 24.00 | CO57: 140.00 | CP57: 28.00 | CQ57: 120.00 | CR57: 32.00 | CS57: 120.00 | CT57: 24.00 | CU57: 160.00 | CV57: 40.00 | CW57: 100.00 | CX57: 20.00 | CY57: 200.00
A58: b0 | B58: =Mono_natural!C12 -> 6400.0 | C58: 6400.0 | D58: 6400.0 | E58: 0.25 | F58: 2,012,282.88 | G58: =IF(F58/N58>$B$60,G59,F58/N58) -> 1,257.68 | H58: =IF(G59=G58,H59,N58) -> 1,600.00 | I58: 1,250.00 | J58: 1,607.68 | K58: 23.03 | L58: 1,600.00 | M58: 1,200.00 | N58: 1,600.00 | O58: 1,200.00 | P58: 800.00 | Q58: 758.57 | R58: 841.43 | S58: 210.36 | T58: 3,034.30 | U58: 686.7 | V58: 1,341.05 | W58: 258.95 | X58: 64.74 | Y58: 5,364.20 | Z58: 1,081.57 | AA58: 518.43 | AB58: 129.61 | AC58: 4,326.27 | CF58: 10.00 | CG58: 180.00 | CH58: 45.00 | CI58: 40.00 | CJ58: 20.00 | CK58: 160.00 | CL58: 40.00 | CM58: 80.00 | CN58: 30.00 | CO58: 140.00 | CP58: 35.00 | CQ58: 120.00 | CR58: 40.00 | CS58: 120.00 | CT58: 30.00 | CU58: 160.00 | CV58: 50.00 | CW58: 100.00 | CX58: 25.00 | CY58: 200.00
A59: b1 | B59: =Mono_natural!C13 -> -4.0 | C59: -4.0 | D59: -4.0 | E59: 0.30 | F59: 2,021,226.29 | G59: 1,052.72 | H59: =IF(G60=G59,H60,N59) -> 1,920.00 | I59: 1,041.67 | J59: 11.06 | K59: 33.17 | L59: 1,920.00 | M59: 1,120.00 | N59: 1,920.00 | O59: 1,120.00 | P59: 960.00 | Q59: 910.29 | R59: 841.43 | S59: 252.43 | T59: 3,034.30 | U59: 686.7 | V59: 1,609.26 | W59: 258.95 | X59: 77.69 | Y59: 5,364.20 | Z59: 1,297.88 | AA59: 518.43 | AB59: 155.53 | AC59: 4,326.27 | CF59: 12.00 | CG59: 180.00 | CH59: 54.00 | CI59: 40.00 | CJ59: 24.00 | CK59: 160.00 | CL59: 48.00 | CM59: 80.00 | CN59: 36.00 | CO59: 140.00 | CP59: 42.00 | CQ59: 120.00 | CR59: 48.00 | CS59: 120.00 | CT59: 36.00 | CU59: 160.00 | CV59: 60.00 | CW59: 100.00 | CX59: 30.00 | CY59: 200.00
B60: =B58/B59*-1 -> 1600 | E60: 0.35 | F60: 2,033,708.24 | G60: 907.91 | H60: 2,240.00 | I60: 892.86 | J60: 856.47 | K60: 45.15 | L60: 2,240.00 | M60: 1,040.00 | N60: 2,240.00 | O60: 1,040.00 | P60: 1,120.00 | Q60: 1,062.00 | R60: 841.43 | S60: 294.50 | T60: 3,034.30 | U60: 686.7 | V60: 1,877.47 | W60: 258.95 | X60: 90.63 | Y60: 5,364.20 | Z60: 1,514.19 | AA60: 518.43 | AB60: 181.45 | AC60: 4,326.27 | CF60: 14.00 | CG60: 180.00 | CH60: 63.00 | CI60: 40.00 | CJ60: 28.00 | CK60: 160.00 | CL60: 56.00 | CM60: 80.00 | CN60: 42.00 | CO60: 140.00 | CP60: 49.00 | CQ60: 120.00 | CR60: 56.00 | CS60: 120.00 | CT60: 42.00 | CU60: 160.00 | CV60: 70.00 | CW60: 100.00 | CX60: 35.00 | CY60: 200.00
E61: 0.40 | F61: 2,050,318.54 | G61: 800.91 | H61: 2,560.00 | I61: 781.25 | J61: 3,053.95 | K61: 58.97 | L61: 2,560.00 | M61: 960.00 | N61: 2,560.00 | O61: 960.00 | P61: 1,280.00 | Q61: 1,213.72 | R61: 841.43 | S61: 336.57 | T61: 3,034.30 | U61: 686.7 | V61: 2,145.68 | W61: 258.95 | X61: 103.58 | Y61: 5,364.20 | Z61: 1,730.51 | AA61: 518.43 | AB61: 207.37 | AC61: 4,326.27 | CF61: 16.00 | CG61: 180.00 | CH61: 72.00 | CI61: 40.00 | CJ61: 32.00 | CK61: 160.00 | CL61: 64.00 | CM61: 80.00 | CN61: 48.00 | CO61: 140.00 | CP61: 56.00 | CQ61: 120.00 | CR61: 64.00 | CS61: 120.00 | CT61: 48.00 | CU61: 160.00 | CV61: 80.00 | CW61: 100.00 | CX61: 40.00 | CY61: 200.00
A62: Precio de Equilibrio | B62: =((B58/B59)*-1)+((1/B59)*B87) -> 841.4 | C62: =((C58/C59)*-1)+((1/C59)*C87) -> 259.0 | D62: =((D58/D59)*-1)+((1/D59)*D87) -> 518.4 | E62: 0.45 | F62: 2,071,647.03 | G62: 719.32 | H62: 2,880.00 | I62: 694.44 | J62: 107.73 | K62: 74.64 | L62: 2,880.00 | M62: 880.00 | N62: 2,880.00 | O62: 880.00 | P62: 1,440.00 | Q62: 1,365.43 | R62: 841.43 | S62: 378.64 | T62: 3,034.30 | U62: 686.7 | V62: 2,413.89 | W62: 258.95 | X62: 116.53 | Y62: 5,364.20 | Z62: 1,946.82 | AA62: 518.43 | AB62: 233.30 | AC62: 4,326.27 | CF62: 18.00 | CG62: 180.00 | CH62: 81.00 | CI62: 40.00 | CJ62: 36.00 | CK62: 160.00 | CL62: 72.00 | CM62: 80.00 | CN62: 54.00 | CO62: 140.00 | CP62: 63.00 | CQ62: 120.00 | CR62: 72.00 | CS62: 120.00 | CT62: 54.00 | CU62: 160.00 | CV62: 90.00 | CW62: 100.00 | CX62: 45.00 | CY62: 200.00
A63: Cantidad de Equilibrio | B63: =B87 -> 3,034.3 | C63: =C87 -> 5,364.2 | D63: =D87 -> 4,326.3 | E63: 0.50 | F63: 2,098,283.52 | G63: 655.71 | H63: 3,200.00 | I63: 625.00 | J63: 113.56 | K63: 92.15 | L63: 3,200.00 | M63: 800.00 | N63: 3,200.00 | O63: 800.00 | P63: 1,600.00 | Q63: 1,517.15 | R63: 841.43 | S63: 420.71 | T63: 3,034.30 | U63: 686.7 | V63: 2,682.10 | W63: 258.95 | X63: 129.48 | Y63: 5,364.20 | Z63: 2,163.13 | AA63: 518.43 | AB63: 259.22 | AC63: 4,326.27 | CF63: 20.00 | CG63: 180.00 | CH63: 90.00 | CI63: 40.00 | CJ63: 40.00 | CK63: 160.00 | CL63: 80.00 | CM63: 80.00 | CN63: 60.00 | CO63: 140.00 | CP63: 70.00 | CQ63: 120.00 | CR63: 80.00 | CS63: 120.00 | CT63: 60.00 | CU63: 160.00 | CV63: 100.00 | CW63: 100.00 | CX63: 50.00 | CY63: 200.00
A64: Ingreso Marginal | B64: =((B58/B59)*-1)+((2/B59)*B87) -> 82.9 | C64: =((C58/C59)*-1)+((2/C59)*C87) -> -1,082.1 | D64: =((D58/D59)*-1)+((2/D59)*D87) -> -563.1 | E64: 0.55 | F64: 2,130,817.84 | G64: 605.35 | H64: 3,520.00 | I64: 568.18 | J64: 723.91 | K64: 111.50 | L64: 3,520.00 | M64: 720.00 | N64: 3,520.00 | O64: 720.00 | P64: 1,760.00 | Q64: 1,668.86 | R64: 841.43 | S64: 462.78 | T64: 3,034.30 | U64: 686.7 | V64: 2,950.31 | W64: 258.95 | X64: 142.42 | Y64: 5,364.20 | Z64: 2,379.45 | AA64: 518.43 | AB64: 285.14 | AC64: 4,326.27 | CF64: 22.00 | CG64: 180.00 | CH64: 99.00 | CI64: 40.00 | CJ64: 44.00 | CK64: 160.00 | CL64: 88.00 | CM64: 80.00 | CN64: 66.00 | CO64: 140.00 | CP64: 77.00 | CQ64: 120.00 | CR64: 88.00 | CS64: 120.00 | CT64: 66.00 | CU64: 160.00 | CV64: 110.00 | CW64: 100.00 | CX64: 55.00 | CY64: 200.00
A65: Costo Marginal | B65: =(3*(B54*B87^2))+(2*B55*B87)+B56 -> 82.9 | C65: =(3*(C54*C87^2))+(2*C55*C87)+C56 -> 259.0 | D65: =(3*(D54*D87^2))+(2*D55*D87)+D56 -> 168.4 | E65: 0.60 | F65: 2,169,839.82 | G65: 565.06 | H65: 3,840.00 | I65: 520.83 | J65: 2,083,835.90 | K65: 132.70 | L65: 3,840.00 | M65: 640.00 | N65: 3,840.00 | O65: 640.00 | P65: 1,920.00 | Q65: 1,820.58 | R65: 841.43 | S65: 504.86 | T65: 3,034.30 | U65: 686.7 | V65: 3,218.52 | W65: 258.95 | X65: 155.37 | Y65: 5,364.20 | Z65: 2,595.76 | AA65: 518.43 | AB65: 311.06 | AC65: 4,326.27 | CF65: 24.00 | CG65: 180.00 | CH65: 108.00 | CI65: 40.00 | CJ65: 48.00 | CK65: 160.00 | CL65: 96.00 | CM65: 80.00 | CN65: 72.00 | CO65: 140.00 | CP65: 84.00 | CQ65: 120.00 | CR65: 96.00 | CS65: 120.00 | CT65: 72.00 | CU65: 160.00 | CV65: 120.00 | CW65: 100.00 | CX65: 60.00 | CY65: 200.00
A66: Costo Medio | B66: =B67/B87 -> 686.7 | C66: =C67/C87 -> 459.2 | D66: =D67/D87 -> 518.4 | E66: 0.65 | F66: 2,215,939.28 | G66: 532.68 | H66: 4,160.00 | I66: 480.77 | J66: 2,553,187.69 | K66: 155.73 | L66: 4,160.00 | M66: 560.00 | N66: 4,160.00 | O66: 560.00 | P66: 2,080.00 | Q66: 1,972.29 | R66: 841.43 | S66: 546.93 | T66: 3,034.30 | U66: 686.7 | V66: 3,486.73 | W66: 258.95 | X66: 168.32 | Y66: 5,364.20 | Z66: 2,812.07 | AA66: 518.43 | AB66: 336.98 | AC66: 4,326.27 | CF66: 26.00 | CG66: 180.00 | CH66: 117.00 | CI66: 40.00 | CJ66: 52.00 | CK66: 160.00 | CL66: 104.00 | CM66: 80.00 | CN66: 78.00 | CO66: 140.00 | CP66: 91.00 | CQ66: 120.00 | CR66: 104.00 | CS66: 120.00 | CT66: 78.00 | CU66: 160.00 | CV66: 130.00 | CW66: 100.00 | CX66: 65.00 | CY66: 200.00
A67: Costo Total | B67: =B54*(B87^3)+B55*(B87^2)+B56*B87+B57 -> 2,083,791.7 | C67: =C54*(C87^3)+C55*(C87^2)+C56*C87+C57 -> 2,463,001.0 | D67: =D54*(D87^3)+D55*(D87^2)+D56*D87+D57 -> 2,242,881.2 | E67: 0.70 | F67: 2,269,706.04 | G67: 506.63 | H67: 4,480.00 | I67: 446.43 | J67: 469,404.31 | K67: 180.62 | L67: 4,480.00 | M67: 480.00 | N67: 4,480.00 | O67: 480.00 | P67: 2,240.00 | Q67: 2,124.01 | R67: 841.43 | S67: 589.00 | T67: 3,034.30 | U67: 686.7 | V67: 3,754.94 | W67: 258.95 | X67: 181.27 | Y67: 5,364.20 | Z67: 3,028.39 | AA67: 518.43 | AB67: 362.90 | AC67: 4,326.27 | CF67: 28.00 | CG67: 180.00 | CH67: 126.00 | CI67: 40.00 | CJ67: 56.00 | CK67: 160.00 | CL67: 112.00 | CM67: 80.00 | CN67: 84.00 | CO67: 140.00 | CP67: 98.00 | CQ67: 120.00 | CR67: 112.00 | CS67: 120.00 | CT67: 84.00 | CU67: 160.00 | CV67: 140.00 | CW67: 100.00 | CX67: 70.00 | CY67: 200.00
A68: Ingreso Total | B68: =B63*B62 -> 2,553,135.8 | C68: =C63*C62 -> 1,389,060.6 | D68: =D63*D62 -> 2,242,881.2 | E68: 0.75 | F68: 2,331,729.92 | G68: 485.78 | H68: 4,800.00 | I68: 416.67 | J68: 68.00 | K68: 207.34 | L68: 4,800.00 | M68: 400.00 | N68: 4,800.00 | O68: 400.00 | P68: 2,400.00 | Q68: 2,275.72 | R68: 841.43 | S68: 631.07 | T68: 3,034.30 | U68: 686.7 | V68: 4,023.15 | W68: 258.95 | X68: 194.21 | Y68: 5,364.20 | Z68: 3,244.70 | AA68: 518.43 | AB68: 388.83 | AC68: 4,326.27 | CF68: 30.00 | CG68: 180.00 | CH68: 135.00 | CI68: 40.00 | CJ68: 60.00 | CK68: 160.00 | CL68: 120.00 | CM68: 80.00 | CN68: 90.00 | CO68: 140.00 | CP68: 105.00 | CQ68: 120.00 | CR68: 120.00 | CS68: 120.00 | CT68: 90.00 | CU68: 160.00 | CV68: 150.00 | CW68: 100.00 | CX68: 75.00 | CY68: 200.00
A69: Beneficio | B69: =B68-B67 -> 469,344.1 | C69: =C68-C67 -> -1,073,940.4 | D69: =D68-D67 -> -0.0 | E69: 0.80 | F69: 2,402,600.76 | G69: 469.26 | H69: 5,120.00 | I69: 390.63 | J69: 78.63 | K69: 235.91 | L69: 5,120.00 | M69: 320.00 | N69: 5,120.00 | O69: 320.00 | P69: 2,560.00 | Q69: 2,427.44 | R69: 841.43 | S69: 673.14 | T69: 3,034.30 | U69: 686.7 | V69: 4,291.36 | W69: 258.95 | X69: 207.16 | Y69: 5,364.20 | Z69: 3,461.01 | AA69: 518.43 | AB69: 414.75 | AC69: 4,326.27 | CF69: 32.00 | CG69: 180.00 | CH69: 144.00 | CI69: 40.00 | CJ69: 64.00 | CK69: 160.00 | CL69: 128.00 | CM69: 80.00 | CN69: 96.00 | CO69: 140.00 | CP69: 112.00 | CQ69: 120.00 | CR69: 128.00 | CS69: 120.00 | CT69: 96.00 | CU69: 160.00 | CV69: 160.00 | CW69: 100.00 | CX69: 80.00 | CY69: 200.00
A70: Elasticidad Precio | B70: =+B59*(B62/B63) -> -1.1 | C70: =+C59*(C62/C63) -> -0.2 | D70: =+D59*(D62/D63) -> -0.5 | E70: 0.85 | F70: 2,482,908.37 | G70: 456.42 | H70: 5,440.00 | I70: 367.65 | J70: 88.77 | K70: 266.32 | L70: 5,440.00 | M70: 240.00 | N70: 5,440.00 | O70: 240.00 | P70: 2,720.00 | Q70: 2,579.15 | R70: 841.43 | S70: 715.21 | T70: 3,034.30 | U70: 686.7 | V70: 4,559.57 | W70: 258.95 | X70: 220.11 | Y70: 5,364.20 | Z70: 3,677.33 | AA70: 518.43 | AB70: 440.67 | AC70: 4,326.27 | CF70: 34.00 | CG70: 180.00 | CH70: 153.00 | CI70: 40.00 | CJ70: 68.00 | CK70: 160.00 | CL70: 136.00 | CM70: 80.00 | CN70: 102.00 | CO70: 140.00 | CP70: 119.00 | CQ70: 120.00 | CR70: 136.00 | CS70: 120.00 | CT70: 102.00 | CU70: 160.00 | CV70: 170.00 | CW70: 100.00 | CX70: 85.00 | CY70: 200.00
E71: 0.90 | F71: 2,573,242.57 | G71: 446.74 | H71: 5,760.00 | I71: 347.22 | J71: 99.52 | K71: 298.58 | L71: 5,760.00 | M71: 160.00 | N71: 5,760.00 | O71: 160.00 | P71: 2,880.00 | Q71: 2,730.87 | R71: 841.43 | S71: 757.28 | T71: 3,034.30 | U71: 686.7 | V71: 4,827.78 | W71: 258.95 | X71: 233.06 | Y71: 5,364.20 | Z71: 3,893.64 | AA71: 518.43 | AB71: 466.59 | AC71: 4,326.27 | CF71: 36.00 | CG71: 180.00 | CH71: 162.00 | CI71: 40.00 | CJ71: 72.00 | CK71: 160.00 | CL71: 144.00 | CM71: 80.00 | CN71: 108.00 | CO71: 140.00 | CP71: 126.00 | CQ71: 120.00 | CR71: 144.00 | CS71: 120.00 | CT71: 108.00 | CU71: 160.00 | CV71: 180.00 | CW71: 100.00 | CX71: 90.00 | CY71: 200.00
E72: 0.95 | F72: 2,674,193.20 | G72: 439.83 | H72: 6,080.00 | I72: 328.95 | J72: 110.89 | K72: 332.67 | L72: 6,080.00 | M72: 80.00 | N72: 6,080.00 | O72: 80.00 | P72: 3,040.00 | Q72: 2,882.58 | R72: 841.43 | S72: 799.35 | T72: 3,034.30 | U72: 686.7 | V72: 5,095.99 | W72: 258.95 | X72: 246.00 | Y72: 5,364.20 | Z72: 4,109.95 | AA72: 518.43 | AB72: 492.51 | AC72: 4,326.27 | CF72: 38.00 | CG72: 180.00 | CH72: 171.00 | CI72: 40.00 | CJ72: 76.00 | CK72: 160.00 | CL72: 152.00 | CM72: 80.00 | CN72: 114.00 | CO72: 140.00 | CP72: 133.00 | CQ72: 120.00 | CR72: 152.00 | CS72: 120.00 | CT72: 114.00 | CU72: 160.00 | CV72: 190.00 | CW72: 100.00 | CX72: 95.00 | CY72: 200.00
E73: 1.00 | F73: 2,786,350.08 | G73: 435.37 | H73: 6,400.00 | I73: 312.50 | J73: 122.87 | K73: 368.61 | L73: 6,400.00 | M73: =(($B$58/$B$59)*-1)+((1/$B$59)*N73) -> 0.00 | N73: 6,400.00 | O73: 0.00 | P73: 3,200.00 | Q73: 3,034.30 | R73: 841.43 | S73: 841.43 | T73: 3,034.30 | U73: 686.7 | V73: 5,364.20 | W73: 258.95 | X73: 258.95 | Y73: 5,364.20 | Z73: 4,326.27 | AA73: 518.43 | AB73: 518.43 | AC73: 4,326.27 | CF73: 40.00 | CG73: 180.00 | CH73: 180.00 | CI73: 40.00 | CJ73: 80.00 | CK73: 160.00 | CL73: 160.00 | CM73: 80.00 | CN73: 120.00 | CO73: 140.00 | CP73: 140.00 | CQ73: 120.00 | CR73: 160.00 | CS73: 120.00 | CT73: 120.00 | CU73: 160.00 | CV73: 200.00 | CW73: 100.00 | CX73: 100.00 | CY73: 200.00
E76: COMPETITIVO | F76: =((-1*(2*B55-1/B59))+((((2*B55-1/B59)^2))-((12*B54*(B56+B58/B59))))^0.5)/(6*B54) -> 5364.199082
E77: MEDIO
A85: y1 equilibrio | B85: =((-1*(2*B55-2/B59))+((((2*B55-2/B59)^2))-((12*B54*(B56+B58/B59))))^0.5)/(6*B54) -> 3034.3 | C85: =((-1*(2*B55-1/B59))+((((2*B55-1/B59)^2))-((12*B54*(B56+B58/B59))))^0.5)/(6*B54) -> 5364.2 | D85: 4000.0 | E85: =B54*(D85^3)+B55*(D85^2)-(1/B59)*(D85^2)+(B56-(B58/B59*-1))*D85+B57 -> -208031.9996
A86: y2 equilibrio | B86: =((-1*(2*B55-2/B59))-((((2*B55-2/B59)^2))-((12*B54*(B56+B58/B59))))^0.5)/(6*B54) -> -58589.4 | C86: =((-1*(2*B55-1/B59))-((((2*B55-1/B59)^2))-((12*B54*(B56+B58/B59))))^0.5)/(6*B54) -> -33141.5 | D86: =((-1*(2*D55-2/D59))-((((2*D55-2/D59)^2))-((12*D54*(D56+D58/D59))))^0.5)/(6*D54) -> -58589.4
A87: y equilibrio | B87: =IF(B85>0,B85,B86) -> 3034.3 | C87: =IF(C85>0,C85,C86) -> 5364.2 | D87: =Mono_natural!E17 -> 4326.3
W101: Función de demanda isoel´stica con costos polinomiales de segundo grado | AH101: Demanda | AJ101: Ingreso Marginal
W102: FUNCIÒN DE COSTOS | X102: CON impuesto | Y102: SIN impuesto | Z102: Ponderador | AA102: COSTO TOTAL | AB102: COSTO MEDIO | AD102: COSTO FIJO MEDIO | AE102: COSTO VARIABLE MEDIO | AF102: COSTO MARGINAL | AH102: P | AI102: Y | AJ102: P | AK102: Y | AL102: LineP(x) | AN102: LineP(y) | AP102: LineCU
Z103: 0.00 | AL103: =$X$112*Z103 -> 0.00 | AM103: =$X$111 -> 50.00 | AN103: =$X$111*Z103 -> 0.00 | AO103: =$X$112 -> 10.00 | AP103: =$X$115 -> 15.0
W104: b | X104: =Mono_maxben_iso!C6 -> 0.50 | Y104: =X104 -> 0.50 | Z104: 0.05 | AL104: =$X$112*Z104 -> 0.50 | AM104: =$X$111 -> 50.00 | AN104: =$X$111*Z104 -> 2.50 | AO104: =$X$112 -> 10.00 | AP104: =$X$115 -> 15.0
W105: c | X105: =Mono_maxben_iso!C7 -> -10.00 | Y105: =X105 -> -10.00 | Z105: 0.10 | AL105: 1.00 | AM105: 50.00 | AN105: 5.00 | AO105: 10.00 | AP105: 15.0
W106: d | X106: =Mono_maxben_iso!C8 -> 200.00 | Y106: 200.00 | Z106: 0.15 | AA106: =$X$106+($X$105*AI106)+($X$104*(AI106^2)) -> 224.69 | AB106: =AA106/AI106 -> 10.11 | AC106: =IF(AB106=AB105,AC105,AI106) -> 22.22 | AD106: =$X$106/AI106 -> 9.00 | AE106: =AB106-AD106 -> 1.11 | AH106: =$X$107*Z106*0.3 -> 22.50 | AI106: =($X$107/AH106)^(1/-$X$108) -> 22.22 | AJ106: =(1+$X$108)*$X$107*AI106^($X$108) -> 0.00 | AK106: =AI106 -> 22.22 | AL106: 1.50 | AM106: 50.00 | AN106: 7.50 | AO106: 10.00 | AP106: 15.0
W107: b0 | X107: =Mono_maxben_iso!C9 -> 500.00 | Y107: 500.00 | Z107: 0.20 | AA107: 172.22 | AB107: =AA107/AI107 -> 10.33 | AC107: 16.67 | AD107: 12.00 | AE107: -1.67 | AH107: 30.00 | AI107: 16.67 | AJ107: 0.00 | AK107: 16.67 | AL107: 2.00 | AM107: 50.00 | AN107: 10.00 | AO107: 10.00 | AP107: 15.0
W108: b1 | X108: =Mono_maxben_iso!C10 -> -1.00 | Y108: -1.00 | Z108: 0.25 | AA108: 155.56 | AB108: =AA108/AI108 -> 11.67 | AC108: 13.33 | AD108: 15.00 | AE108: -3.33 | AF108: =IF(((2*$X$104*(AI108))+($X$105))<$X$109,((2*$X$104*(AI108))+($X$105)),AF107) -> 3.33 | AG108: =AI108 -> 13.33 | AH108: 37.50 | AI108: 13.33 | AJ108: 0.00 | AK108: 13.33 | AL108: 2.50 | AM108: 50.00 | AN108: 12.50 | AO108: 10.00 | AP108: 15.0
X109: =X107/X108*-1 -> 500 | Y109: =X109 -> 500 | Z109: 0.30 | AA109: 150.62 | AB109: =IF((AA109/AI109)<$X$9,(AA109/AI109),AB108) -> 13.56 | AC109: 11.11 | AD109: 18.00 | AE109: -4.44 | AF109: 1.11 | AG109: 11.11 | AH109: 45.00 | AI109: 11.11 | AJ109: 0.00 | AK109: 11.11 | AL109: 3.00 | AM109: 50.00 | AN109: 15.00 | AO109: 10.00 | AP109: 15.0
W110: impuestos | X110: =Mono_maxben_iso!#REF! ->  | Y110: 0 | Z110: 0.35 | AA110: 150.11 | AB110: =IF((AA110/AI110)<$X$9,(AA110/AI110),AB109) -> 15.76 | AC110: 9.52 | AD110: 21.00 | AE110: -5.24 | AF110: -0.48 | AG110: 9.52 | AH110: 52.50 | AI110: 9.52 | AJ110: 0.00 | AK110: 9.52 | AL110: 3.50 | AM110: 50.00 | AN110: 17.50 | AO110: 10.00 | AP110: 15.0
W111: Precio de Equilibrio | X111: =X107/X112^-X108 -> 50.0 | Y111: =Y107*Y112^Y108 -> 100.0 | Z111: 0.40 | AA111: 151.39 | AB111: 18.17 | AC111: 8.33 | AD111: 24.00 | AE111: -5.83 | AF111: -1.67 | AG111: 8.33 | AH111: 60.00 | AI111: 8.33 | AJ111: 0.00 | AK111: 8.33 | AL111: 4.00 | AM111: 50.00 | AN111: 20.00 | AO111: 10.00 | AP111: 15.0
W112: Cantidad de Equilibrio | X112: =Mono_maxben_iso!C17 -> 10.0 | Y112: 5.0 | Z112: 0.45 | AA112: 153.36 | AB112: 20.70 | AC112: 7.41 | AD112: 27.00 | AE112: -6.30 | AF112: -2.59 | AG112: 7.41 | AH112: 67.50 | AI112: 7.41 | AJ112: 0.00 | AK112: 7.41 | AL112: 4.50 | AM112: 50.00 | AN112: 22.50 | AO112: 10.00 | AP112: 15.0
W113: Ingreso Marginal | X113: =(1+X108)*X107/X112^-X108 -> 0.0 | Y113: =((1+Y108)*Y107)/(Y112^-Y108) -> 0.0 | Z113: 0.50 | AA113: 155.56 | AB113: 23.33 | AC113: 6.67 | AD113: 30.00 | AE113: -6.67 | AF113: -3.33 | AG113: 6.67 | AH113: 75.00 | AI113: 6.67 | AJ113: 0.00 | AK113: 6.67 | AL113: 5.00 | AM113: 50.00 | AN113: 25.00 | AO113: 10.00 | AP113: 15.0
W114: Costo Marginal | X114: =(2*(X104*X120))+(X105) -> 0.0 | Y114: =(2*(Y104*Y120))+(Y105) -> -5.0 | Z114: 0.55 | AA114: 157.76 | AB114: 26.03 | AC114: 6.06 | AD114: 33.00 | AE114: -6.97 | AF114: -3.94 | AG114: 6.06 | AH114: 82.50 | AI114: 6.06 | AJ114: 0.00 | AK114: 6.06 | AL114: 5.50 | AM114: 50.00 | AN114: 27.50 | AO114: 10.00 | AP114: 15.0
W115: Costo Medio | X115: =X116/X120 -> 15.0 | Y115: =Y116/Y120 -> 32.5 | Z115: 0.60 | AA115: 159.88 | AB115: 28.78 | AC115: 5.56 | AD115: 36.00 | AE115: -7.22 | AF115: -4.44 | AG115: 5.56 | AH115: 90.00 | AI115: 5.56 | AJ115: 0.00 | AK115: 5.56 | AL115: 6.00 | AM115: 50.00 | AN115: 30.00 | AO115: 10.00 | AP115: 15.0
W116: Costo Total | X116: =X104*(X120^2)+X105*X120+X106 -> 150.0 | Y116: =Y104*(Y120^2)+Y105*Y120+Y106 -> 162.5 | Z116: 0.65 | AA116: 161.87 | AB116: 31.56 | AC116: 5.13 | AD116: 39.00 | AE116: -7.44 | AF116: -4.87 | AG116: 5.13 | AH116: 97.50 | AI116: 5.13 | AJ116: 0.00 | AK116: 5.13 | AL116: 6.50 | AM116: 50.00 | AN116: 32.50 | AO116: 10.00 | AP116: 15.0
W117: Ingreso Total | X117: =X112*X111 -> 500.0 | Y117: =Y112*Y111 -> 500.0 | Z117: 0.70 | AA117: 163.72 | AB117: 34.38 | AC117: 4.76 | AD117: 42.00 | AE117: -7.62 | AF117: -5.24 | AG117: 4.76 | AH117: 105.00 | AI117: 4.76 | AJ117: 0.00 | AK117: 4.76 | AL117: 7.00 | AM117: 50.00 | AN117: 35.00 | AO117: 10.00 | AP117: 15.0
W118: Beneficio | X118: =X117-X116 -> 350.0 | Y118: =Y117-Y116 -> 337.5 | Z118: 0.75 | AA118: 165.43 | AB118: 37.22 | AC118: 4.44 | AD118: 45.00 | AE118: -7.78 | AF118: -5.56 | AG118: 4.44 | AH118: 112.50 | AI118: 4.44 | AJ118: 0.00 | AK118: 4.44 | AL118: 7.50 | AM118: 50.00 | AN118: 37.50 | AO118: 10.00 | AP118: 15.0
X119: =(1+X108)*X107-2*X104*X112^(1-X108)-X105*X112^-X108 -> -4.282479179e-05 | Y119: =(1+Y108)*Y107+(2*Y105*Y112^(1-Y108))+(Y106*Y112^-Y108) -> 499.9999199 | Z119: 0.80 | AA119: 167.01 | AB119: 40.08 | AC119: 4.17 | AD119: 48.00 | AE119: -7.92 | AF119: -5.83 | AG119: 4.17 | AH119: 120.00 | AI119: 4.17 | AJ119: 0.00 | AK119: 4.17 | AL119: 8.00 | AM119: 50.00 | AN119: 40.00 | AO119: 10.00 | AP119: 15.0
W120: y equilibrio | X120: =X112 -> 10.0 | Y120: =Y112 -> 5.0 | Z120: 0.85 | AA120: 168.47 | AB120: 42.96 | AC120: 3.92 | AD120: 51.00 | AE120: -8.04 | AF120: -6.08 | AG120: 3.92 | AH120: 127.50 | AI120: 3.92 | AJ120: 0.00 | AK120: 3.92 | AL120: 8.50 | AM120: 50.00 | AN120: 42.50 | AO120: 10.00 | AP120: 15.0
Z121: 0.90 | AA121: 169.82 | AB121: 45.85 | AC121: 3.70 | AD121: 54.00 | AE121: -8.15 | AF121: -6.30 | AG121: 3.70 | AH121: 135.00 | AI121: 3.70 | AJ121: 0.00 | AK121: 3.70 | AL121: 9.00 | AM121: 50.00 | AN121: 45.00 | AO121: 10.00 | AP121: 15.0
W122: Inserte un valor y particular | X122: 572.0 | Y122: =X122 -> 572.0 | Z122: 0.95 | AA122: 171.07 | AB122: 48.75 | AC122: 3.51 | AD122: 57.00 | AE122: -8.25 | AF122: -6.49 | AG122: 3.51 | AH122: 142.50 | AI122: 3.51 | AJ122: 0.00 | AK122: 3.51 | AL122: 9.50 | AM122: 50.00 | AN122: 47.50 | AO122: 10.00 | AP122: 15.0
Z123: 1.00 | AA123: 172.22 | AB123: 51.67 | AC123: 3.33 | AD123: 60.00 | AE123: -8.33 | AF123: -6.67 | AG123: 3.33 | AH123: 150.00 | AI123: 3.33 | AJ123: 0.00 | AK123: 3.33 | AL123: 10.00 | AM123: 50.00 | AN123: 50.00 | AO123: 10.00 | AP123: 15.0
W124: Costo Total | X124: =X104*(X122^(2))+X105*X122+X106 -> 158072.0 | Y124: =Y104*(Y122^(2))+Y105*Y122+Y106 -> 158072.0
W125: Costo Fijo | X125: =X106 -> 200.0 | Y125: =Y106 -> 200.0
W126: Costo Variable | X126: =X124-X125 -> 157872.0 | Y126: =Y124-Y125 -> 157872.0
W127: Costo Medio | X127: =X124/X122 -> 276.3 | Y127: =Y124/Y122 -> 276.3
W128: Costo Marginal | X128: =(2*X104*X122)+X105 -> 562.0 | Y128: =(2*Y104*Y122)+Y105 -> 562.0 | Z128: =X107^-Y108 -> 500.00
W129: Costo Fijo Medio | X129: =X125/X122 -> 0.3 | Y129: =Y125/Y122 -> 0.3
W130: Costo Variable Medio | X130: =X126/X122 -> 276.0 | Y130: =Y126/Y122 -> 276.0
W201: Función de demanda isoel´stica con costos polinomiales de primer grado | AH201: Demanda | AJ201: Ingreso Marginal
W202: FUNCIÒN DE COSTOS | X202: CON impuesto | Z202: Ponderador | AA202: COSTO TOTAL | AB202: COSTO MEDIO | AD202: COSTO FIJO MEDIO | AE202: COSTO VARIABLE MEDIO | AF202: COSTO MARGINAL | AH202: P | AI202: Y | AJ202: P | AK202: Y | AL202: LineP(x) | AN202: LineP(y) | AP202: LineCU
Z203: 0.00 | AA203: =$X$206+($X$205*AI203) -> 300.00 | AL203: =$X$212*Z203 -> 0.00 | AM203: =$X$211 -> 50.00 | AN203: =$X$211*Z203 -> 0.00 | AO203: =$X$212 -> 17.78 | AP203: =$X$215 -> 26.9
Z204: 0.05 | AA204: 300.00 | AL204: =$X$212*Z204 -> 0.89 | AM204: =$X$211 -> 50.00 | AN204: =$X$211*Z204 -> 2.50 | AO204: =$X$212 -> 17.78 | AP204: =$X$215 -> 26.9
W205: c | X205: =Mono_maxben_iso_prim!C7 -> 10.00 | Z205: 0.10 | AA205: 324.90 | AB205: =IF((AA205/AI205)<$X$209,(AA205/AI205),AB204) -> 130.50 | AC205: =IF(AB205=AB204,AC204,AI205) -> 2.49 | AD205: =$X$106/AI205 -> 80.33 | AE205: =AB205-AD205 -> 50.17 | AF205: =$X$205 -> 10.00 | AG205: =AI205 -> 2.49 | AH205: =$X$207*AI205^$X$208 -> 241.03 | AI205: =Z205*$X$212*1.4 -> 2.49 | AJ205: =(1+$X$208)*$X$207*AI205^($X$208) -> 48.21 | AK205: =AI205 -> 2.49 | AL205: 1.78 | AM205: 50.00 | AN205: 5.00 | AO205: 17.78 | AP205: 26.9
W206: d | X206: =Mono_maxben_iso_prim!C8 -> 300.00 | Z206: 0.15 | AA206: 337.34 | AB206: 90.33 | AC206: 3.73 | AD206: 53.56 | AE206: 36.78 | AF206: 10.00 | AG206: 3.73 | AH206: 174.26 | AI206: 3.73 | AJ206: 34.85 | AK206: =AI206 -> 3.73 | AL206: 2.67 | AM206: 50.00 | AN206: 7.50 | AO206: 17.78 | AP206: 26.9
W207: b0 | X207: =Mono_maxben_iso_prim!C9 -> 500.00 | Z207: 0.20 | AA207: 349.79 | AB207: 70.25 | AC207: 4.98 | AD207: 40.17 | AE207: 30.08 | AF207: 10.00 | AG207: 4.98 | AH207: 138.43 | AI207: 4.98 | AJ207: 27.69 | AK207: 4.98 | AL207: 3.56 | AM207: 50.00 | AN207: 10.00 | AO207: 17.78 | AP207: 26.9
W208: b1 | X208: =Mono_maxben_iso_prim!C10 -> -0.80 | Z208: 0.25 | AA208: 362.24 | AB208: 58.20 | AC208: 6.22 | AD208: 32.13 | AE208: 26.07 | AF208: 10.00 | AG208: =AI208 -> 6.22 | AH208: 115.80 | AI208: 6.22 | AJ208: 23.16 | AK208: 6.22 | AL208: 4.45 | AM208: 50.00 | AN208: 12.50 | AO208: 17.78 | AP208: 26.9
X209: =X207/X208*-1 -> 625 | Z209: 0.30 | AA209: 374.69 | AB209: 50.17 | AC209: 7.47 | AD209: 26.78 | AE209: 23.39 | AF209: 10.00 | AG209: 7.47 | AH209: 100.09 | AI209: 7.47 | AJ209: 20.02 | AK209: 7.47 | AL209: 5.33 | AM209: 50.00 | AN209: 15.00 | AO209: 17.78 | AP209: 26.9
Z210: 0.35 | AA210: 387.14 | AB210: 44.43 | AC210: 8.71 | AD210: 22.95 | AE210: 21.48 | AF210: 10.00 | AG210: 8.71 | AH210: 88.47 | AI210: 8.71 | AJ210: 17.69 | AK210: 8.71 | AL210: 6.22 | AM210: 50.00 | AN210: 17.50 | AO210: 17.78 | AP210: 26.9
W211: Precio de Equilibrio | X211: =X205/(1+X208) -> 50.0 | Z211: 0.40 | AA211: 399.58 | AB211: 40.13 | AC211: 9.96 | AD211: 20.08 | AE211: 20.04 | AF211: 10.00 | AG211: 9.96 | AH211: 79.51 | AI211: 9.96 | AJ211: 15.90 | AK211: 9.96 | AL211: 7.11 | AM211: 50.00 | AN211: 20.00 | AO211: 17.78 | AP211: 26.9
W212: Cantidad de Equilibrio | X212: =(((1+X208)*X207)/X205)^(-1/X208) -> 17.8 | Z212: 0.45 | AA212: 412.03 | AB212: 36.78 | AC212: 11.20 | AD212: 17.85 | AE212: 18.93 | AF212: 10.00 | AG212: 11.20 | AH212: 72.36 | AI212: 11.20 | AJ212: 14.47 | AK212: 11.20 | AL212: 8.00 | AM212: 50.00 | AN212: 22.50 | AO212: 17.78 | AP212: 26.9
W213: Ingreso Marginal | X213: =(1+X208)*X207/X212^-X208 -> 10.0 | Z213: 0.50 | AA213: 424.48 | AB213: 34.10 | AC213: 12.45 | AD213: 16.07 | AE213: 18.03 | AF213: 10.00 | AG213: 12.45 | AH213: 66.51 | AI213: 12.45 | AJ213: 13.30 | AK213: 12.45 | AL213: 8.89 | AM213: 50.00 | AN213: 25.00 | AO213: 17.78 | AP213: 26.9
W214: Costo Marginal | X214: =X205 -> 10.0 | Z214: 0.55 | AA214: 436.93 | AB214: 31.91 | AC214: 13.69 | AD214: 14.61 | AE214: 17.30 | AF214: 10.00 | AG214: 13.69 | AH214: 61.63 | AI214: 13.69 | AJ214: 12.33 | AK214: 13.69 | AL214: 9.78 | AM214: 50.00 | AN214: 27.50 | AO214: 17.78 | AP214: 26.9
W215: Costo Medio | X215: =X216/X220 -> 26.9 | Z215: 0.60 | AA215: 449.38 | AB215: 30.08 | AC215: 14.94 | AD215: 13.39 | AE215: 16.69 | AF215: 10.00 | AG215: 14.94 | AH215: 57.48 | AI215: 14.94 | AJ215: 11.50 | AK215: 14.94 | AL215: 10.67 | AM215: 50.00 | AN215: 30.00 | AO215: 17.78 | AP215: 26.9
W216: Costo Total | X216: =X205*X220+X206 -> 477.8 | Z216: 0.65 | AA216: 461.82 | AB216: 28.54 | AC216: 16.18 | AD216: 12.36 | AE216: 16.18 | AF216: 10.00 | AG216: 16.18 | AH216: 53.92 | AI216: 16.18 | AJ216: 10.78 | AK216: 16.18 | AL216: 11.56 | AM216: 50.00 | AN216: 32.50 | AO216: 17.78 | AP216: 26.9
W217: Ingreso Total | X217: =X212*X211 -> 889.1 | Z217: 0.70 | AA217: 474.27 | AB217: 27.21 | AC217: 17.43 | AD217: 11.48 | AE217: 15.74 | AF217: 10.00 | AG217: 17.43 | AH217: 50.81 | AI217: 17.43 | AJ217: 10.16 | AK217: 17.43 | AL217: 12.45 | AM217: 50.00 | AN217: 35.00 | AO217: 17.78 | AP217: 26.9
W218: Beneficio | X218: =X217-X216 -> 411.3 | Z218: 0.75 | AA218: 486.72 | AB218: 26.07 | AC218: 18.67 | AD218: 10.71 | AE218: 15.36 | AF218: 10.00 | AG218: 18.67 | AH218: 48.09 | AI218: 18.67 | AJ218: 9.62 | AK218: 18.67 | AL218: 13.34 | AM218: 50.00 | AN218: 37.50 | AO218: 17.78 | AP218: 26.9
Z219: 0.80 | AA219: 499.17 | AB219: 25.06 | AC219: 19.92 | AD219: 10.04 | AE219: 15.02 | AF219: 10.00 | AG219: 19.92 | AH219: 45.67 | AI219: 19.92 | AJ219: 9.13 | AK219: 19.92 | AL219: 14.23 | AM219: 50.00 | AN219: 40.00 | AO219: 17.78 | AP219: 26.9
W220: y equilibrio | X220: =X212 -> 17.8 | Z220: 0.85 | AA220: 511.62 | AB220: 24.18 | AC220: 21.16 | AD220: 9.45 | AE220: 14.73 | AF220: 10.00 | AG220: 21.16 | AH220: 43.50 | AI220: 21.16 | AJ220: 8.70 | AK220: 21.16 | AL220: 15.12 | AM220: 50.00 | AN220: 42.50 | AO220: 17.78 | AP220: 26.9
Z221: 0.90 | AA221: 524.06 | AB221: 23.39 | AC221: 22.41 | AD221: 8.93 | AE221: 14.46 | AF221: 10.00 | AG221: 22.41 | AH221: 41.56 | AI221: 22.41 | AJ221: 8.31 | AK221: 22.41 | AL221: 16.00 | AM221: 50.00 | AN221: 45.00 | AO221: 17.78 | AP221: 26.9
W222: Inserte un valor y particular | X222: 572.0 | Z222: 0.95 | AA222: 536.51 | AB222: 22.68 | AC222: 23.65 | AD222: 8.46 | AE222: 14.23 | AF222: 10.00 | AG222: 23.65 | AH222: 39.80 | AI222: 23.65 | AJ222: 7.96 | AK222: 23.65 | AL222: 16.89 | AM222: 50.00 | AN222: 47.50 | AO222: 17.78 | AP222: 26.9
Z223: 1.00 | AA223: =$X$206+($X$205*AI223) -> 548.96 | AB223: 22.05 | AC223: =IF(AB223=AB222,AC222,AI223) -> 24.90 | AD223: =$X$106/AI223 -> 8.03 | AE223: =AB223-AD223 -> 14.02 | AF223: 10.00 | AG223: 24.90 | AH223: 38.20 | AI223: 24.90 | AJ223: =(1+$X$208)*$X$207*AI223^($X$208) -> 7.64 | AK223: 24.90 | AL223: 17.78 | AM223: 50.00 | AN223: 50.00 | AO223: 17.78 | AP223: 26.9
W224: Costo Total | X224: =X204*(X222^(2))+X205*X222+X206 -> 6020.0
W225: Costo Fijo | X225: =X206 -> 300.0
W226: Costo Variable | X226: =X224-X225 -> 5720.0
W227: Costo Medio | X227: =X224/X222 -> 10.5
W228: Costo Marginal | X228: =(2*X204*X222)+X205 -> 10.0
W229: Costo Fijo Medio | X229: =X225/X222 -> 0.5
W230: Costo Variable Medio | X230: =X226/X222 -> 10.0

Sheet Mono_maxben_iso (hidden)
A1: MONOPOLIO
A2: Función de demanda isoelástica
B5: Parámetros de la función costos e inversa de la demanda
B6: b (y2) | C6: 0.500
B7: c (y) | C7: -10.0
B8: d | C8: 200.0
B9: b0 | C9: 500.0 | I9: =(1+C10)*C9-2*C6*C17^(1-C10)-C7*C17^-C10 -> -4.282479179e-05
B10: b1 | C10: -1.00
C11: Inserte los datos correspondientes
B16: Precio de equilibrio | C16: =+Oculto_Mono!X111 -> 50.0
B17: Cantidad de equilibrio | C17: 10.0
B18: Ingreso marginal | C18: =+Oculto_Mono!X113 -> 0.0
B19: Costo marginal | C19: =+Oculto_Mono!X114 -> 0.0
B20: Costo medio | C20: =+Oculto_Mono!X115 -> 15.0
B21: Costo total | C21: =+Oculto_Mono!X116 -> 150.0
B22: Ingreso total | C22: =+Oculto_Mono!X117 -> 500.0
B23: Beneficio | C23: =+Oculto_Mono!X118 -> 350.0
B32: Títulos
B33: Resultados
B34: Insertar datos
B35: Valores de equilibrio

Sheet Mono_maxben_iso_prim (hidden)
A1: MONOPOLIO
A2: Función de demanda isoelástica
B5: Parámetros de la función de costos y de función inversa de la demanda
B7: c (y) | C7: 10.0
B8: d | C8: 300.0
B9: b0 | C9: 500.0 | I9: =(1+C10)*C9-2*#REF!*C17^(1-C10)-C7*C17^-C10 -> 
B10: b1 | C10: -0.80
C11: Inserte los datos correspondientes
B16: Precio de equilibrio | C16: =Oculto_Mono!X211 -> 50.0
B17: Cantidad de equilibrio | C17: =Oculto_Mono!X212 -> 17.8
B18: Ingreso marginal | C18: =Oculto_Mono!X213 -> 10.0
B19: Costo marginal | C19: =Oculto_Mono!X214 -> 10.0
B20: Costo medio | C20: =Oculto_Mono!X215 -> 26.9
B21: Costo total | C21: =Oculto_Mono!X216 -> 477.8
B22: Ingreso total | C22: =Oculto_Mono!X217 -> 889.1
B23: Beneficio | C23: =Oculto_Mono!X218 -> 411.3
B32: Títulos
B33: Resultados
B34: Insertar datos
B35: Valores de equilibrio
